Body,Body Name,Date,Transaction Number,Invoice Number,Amount,Supplier Name,Supplier ID ,VAT Registration Number ,Expense Area,Expense Type,Expense Code,Purchase Order
http://statistics.data.gov.uk/id/local-authority/29UP,Tonbridge & Malling Borough Council,12/7/2022,0011045253/1,11045253, 682.00,BML Building Services Ltd,01505000,,BRREP Servicing-entrance doors,Larkfield Leisure Centre,M15HDP20001927,110069921
http://statistics.data.gov.uk/id/local-authority/29UP,Tonbridge & Malling Borough Council,12/7/2022,0011045254/1,11045254, 880.00,G C Industrial Heating Services,00578100,,BRREP Servicing - pool plant,Tonbridge Swimming Pool,M15HBP20001910,110069908
http://statistics.data.gov.uk/id/local-authority/29UP,Tonbridge & Malling Borough Council,12/7/2022,0011045255/1,11045255, 3096.00,BML Building Services Ltd,01505000,,Other Expenses,Homeless Accommodation,P03AX000009908,110069880
http://statistics.data.gov.uk/id/local-authority/29UP,Tonbridge & Malling Borough Council,12/7/2022,0011045256/1,11045256, 1010.00,G C Industrial Heating Services,00578100,,BRREP Servicing - pool plant,Tonbridge Swimming Pool,M15HBP20001910,110069915
http://statistics.data.gov.uk/id/local-authority/29UP,Tonbridge & Malling Borough Council,12/7/2022,0011045257/1,11045257, 610.00,G C Industrial Heating Services,00578100,,BRREP Servicing - boilers,Angel Centre,M15HAP20001929,110069897
http://statistics.data.gov.uk/id/local-authority/29UP,Tonbridge & Malling Borough Council,12/7/2022,0011045258/1,11045258, 310.00,G C Industrial Heating Services,00578100,,BRREP Legionella Certification,Leybourne Lakes Country Park,M15HLP30001995,110069872
http://statistics.data.gov.uk/id/local-authority/29UP,Tonbridge & Malling Borough Council,12/7/2022,0011045259/1,11045259, 910.00,G C Industrial Heating Services,00578100,,BRREP Response - General,Leis Man Poult Wood Golf Centr,M15HEP50001997,110069877
http://statistics.data.gov.uk/id/local-authority/29UP,Tonbridge & Malling Borough Council,12/7/2022,0011045260/1,11045260, 545.00,G C Industrial Heating Services,00578100,,BRREP Servicing - boilers,Gibson Building West,M15KBP20001929,110069913
http://statistics.data.gov.uk/id/local-authority/29UP,Tonbridge & Malling Borough Council,12/7/2022,0011045261/1,11045261, 240.00,G C Industrial Heating Services,00578100,,BRREP Servicing - Heating Syst,Leis Man Poult Wood Golf Centr,M15HEP20001934,110069896
http://statistics.data.gov.uk/id/local-authority/29UP,Tonbridge & Malling Borough Council,12/7/2022,0011045262/1,11045262, 388.50,Monitor Pest Control Ltd,01476700,,BRREP Rodent Control,Tonbridge Castle / CAB,M15KFP20001949,110069918
http://statistics.data.gov.uk/id/local-authority/29UP,Tonbridge & Malling Borough Council,12/7/2022,0011045264/1,11045264, 315.00,Royal British Legion Industries Ltd,00139700,,Economic Development & Regen,Eco Dev & Reg Gen Bus Support,D52TD000047027,110069689
http://statistics.data.gov.uk/id/local-authority/29UP,Tonbridge & Malling Borough Council,12/7/2022,0011045265/1,11045265, 1195.00,Assoc. of Tourist Attractions in Kent,00006000,573619712,Marketing,Tonbridge Castle Gatehouse,B40TG000044215,110069895
http://statistics.data.gov.uk/id/local-authority/29UP,Tonbridge & Malling Borough Council,12/7/2022,0011045266/1,11045266, 140.00,Cornerstones Barristers,01359100,,Other Planning Enq - Legal Cos,Legal Sals&Overheads,D01ARDR0044146,
http://statistics.data.gov.uk/id/local-authority/29UP,Tonbridge & Malling Borough Council,12/7/2022,0011045267/1,11045267, 954.30,Stuart Thomas Photography,00416800,,Marketing,Tonbridge Castle Gatehouse,B40TG000044215,
http://statistics.data.gov.uk/id/local-authority/29UP,Tonbridge & Malling Borough Council,12/7/2022,0011045268/1,11045268, 1500.10,Kent County Council,00322500,,Kent Highways,Local Land Charges,D35NK000044240,
http://statistics.data.gov.uk/id/local-authority/29UP,Tonbridge & Malling Borough Council,12/7/2022,0011045269/1,11045269, 350.00,Tonbridge Town Team,01485900,,Economic Development & Regen,Eco Dev & Reg Gen Bus Support,D52TD000047027,
http://statistics.data.gov.uk/id/local-authority/29UP,Tonbridge & Malling Borough Council,12/7/2022,0011045270/1,11045270, 1064.00,Thomson Snell & Passmore,00101700,,Legal Fees,Legal Sals&Overheads,D01ARDR0044002,
http://statistics.data.gov.uk/id/local-authority/29UP,Tonbridge & Malling Borough Council,12/7/2022,0011045271/1,11045271, 74.72,Biffa Waste Services Ltd,01284500,,Trade Refuse Charges,Cleaning & Security,D21FD000044008,
http://statistics.data.gov.uk/id/local-authority/29UP,Tonbridge & Malling Borough Council,12/7/2022,0011045272/1,11045272, 154.10,Biffa Waste Services Ltd,01284500,,Trade Refuse Charges,Cleaning & Security,D21FD000044008,
http://statistics.data.gov.uk/id/local-authority/29UP,Tonbridge & Malling Borough Council,12/7/2022,0011045273/1,11045273, 53.40,Biffa Waste Services Ltd,01284500,,Trade Refuse Charges,Cleaning & Security,D21FD000044008,
http://statistics.data.gov.uk/id/local-authority/29UP,Tonbridge & Malling Borough Council,12/7/2022,0011045274/1,11045274, 146.32,Biffa Waste Services Ltd,01284500,,Trade Refuse Charges,Cleaning & Security,D21FD000044008,
http://statistics.data.gov.uk/id/local-authority/29UP,Tonbridge & Malling Borough Council,12/7/2022,0011045275/1,11045275, 53.40,Biffa Waste Services Ltd,01284500,,Trade Refuse Charges,Cleaning & Security,D21FD000044008,
http://statistics.data.gov.uk/id/local-authority/29UP,Tonbridge & Malling Borough Council,12/7/2022,0011045276/1,11045276, 3850.75,KCS,00054200,,Electricity,Buildings,D21FEDD6021002,
http://statistics.data.gov.uk/id/local-authority/29UP,Tonbridge & Malling Borough Council,12/7/2022,0011045277/1,11045277, 147.00,Envirocure Limited,00963300,,BRREP Legionella Certification,Tonbridge Castle / CAB,M15KFP30001995,
http://statistics.data.gov.uk/id/local-authority/29UP,Tonbridge & Malling Borough Council,12/7/2022,0011045278/1,11045278, 267.75,Scottish Water Business Stream Ltd,01641100,,Sewerage Charges,Buildings,D21FEDD1024003,
http://statistics.data.gov.uk/id/local-authority/29UP,Tonbridge & Malling Borough Council,12/7/2022,0011045279/1,11045279, 1561.36,The Oyster Partnership,01196400,,Temporary Staff,Admin & Prop Sals&Overheads,D01AADA1111300,
http://statistics.data.gov.uk/id/local-authority/29UP,Tonbridge & Malling Borough Council,12/7/2022,0011045280/1,11045280, 4019.67,KCS,00054200,,Electricity,Buildings,D21FEDD5021002,
http://statistics.data.gov.uk/id/local-authority/29UP,Tonbridge & Malling Borough Council,12/7/2022,0011045281/1,11045281, 6878.28,KCS,00054200,,Electricity,Buildings,D21FEDD1021002,
http://statistics.data.gov.uk/id/local-authority/29UP,Tonbridge & Malling Borough Council,12/7/2022,0011045282/1,11045282, 1907.00,"Mogo Direct Limited,",01810800,830486529,Economic Development & Regen,Eco Dev & Reg Gen Bus Support,D52TD000047027,
http://statistics.data.gov.uk/id/local-authority/29UP,Tonbridge & Malling Borough Council,12/7/2022,0011045283/1,11045283, 906.25,TN Davis,01875400,,Other Planning Enq - Legal Cos,Legal Sals&Overheads,D01ARDR0044146,
http://statistics.data.gov.uk/id/local-authority/29UP,Tonbridge & Malling Borough Council,12/7/2022,0011045284/1,11045284, 760.00,Disclosure & Barring Service,00865900,,Professional Fees,Licences - Fee Paying,H27SH000044001,
http://statistics.data.gov.uk/id/local-authority/29UP,Tonbridge & Malling Borough Council,12/7/2022,0011045285/1,11045285, 628.00,Matt Stephens,01802100,,Meeting Expenses,Committee Administration,D29LL000048020,
http://statistics.data.gov.uk/id/local-authority/29UP,Tonbridge & Malling Borough Council,12/7/2022,0011045286/1,11045286, 1217.80,Sellick Partnership Group Limited,01336800,,Temporary Staff,Legal Sals&Overheads,D01ARDR0011300,
http://statistics.data.gov.uk/id/local-authority/29UP,Tonbridge & Malling Borough Council,12/7/2022,0012008558/1,12008558, 49.52,Phoenix Software Ltd,00077400,755349015,Software Hire & Support,Information Technology,D27KD000044059,410032286
http://statistics.data.gov.uk/id/local-authority/29UP,Tonbridge & Malling Borough Council,12/7/2022,0012008558/2,12008558, 10.00,Phoenix Software Ltd,00077400,755349015,Delivery Expenses,Information Technology,D27KD000044069,410032286
http://statistics.data.gov.uk/id/local-authority/29UP,Tonbridge & Malling Borough Council,12/7/2022,0012008559/1,12008559, 29.50,Get It Repaired,01631300,287357752,Maintenance - General,Parking Off-Street,E10HA000040135,410032298
http://statistics.data.gov.uk/id/local-authority/29UP,Tonbridge & Malling Borough Council,12/7/2022,0012008559/2,12008559, 29.50,Get It Repaired,01631300,287357752,Maintenance - General,Parking On-Street,E10HD000040135,410032298
http://statistics.data.gov.uk/id/local-authority/29UP,Tonbridge & Malling Borough Council,12/7/2022,0012008560/1,12008560, 15.88,Esendex Limited,01008900,,Leased Lines & Modems,Information Technology,D27KD000045011,
http://statistics.data.gov.uk/id/local-authority/29UP,Tonbridge & Malling Borough Council,12/7/2022,0012008561/1,12008561, 1526.22,NTT Cloud Communications UK Ltd,01794600,,Software Hire & Support,Information Technology,D27KD000044059,
http://statistics.data.gov.uk/id/local-authority/29UP,Tonbridge & Malling Borough Council,12/7/2022,0012008563/1,12008563, 23.66,Daisy Communications,01068100,,Telephones - Rentals,General Admin Telephones,D24GT000045005,
http://statistics.data.gov.uk/id/local-authority/29UP,Tonbridge & Malling Borough Council,12/7/2022,0012008563/2,12008563, 285.76,Daisy Communications,01068100,,Telephones - Call Costs,General Admin Telephones,D24GT000045006,
http://statistics.data.gov.uk/id/local-authority/29UP,Tonbridge & Malling Borough Council,12/7/2022,0012008563/3,12008563, 95.92,Daisy Communications,01068100,,Leased Lines & Modems,Information Technology,D27KD000045011,
http://statistics.data.gov.uk/id/local-authority/29UP,Tonbridge & Malling Borough Council,12/7/2022,0012008563/4,12008563, 74.46,Daisy Communications,01068100,,Maintenance - General,Security Services Management,E09GA000040135,
http://statistics.data.gov.uk/id/local-authority/29UP,Tonbridge & Malling Borough Council,12/7/2022,0021038293/1,21038293, 1248.05,Streetmaster (South Wales) Ltd,00222100,,Maintenance of Grounds,Tonbridge Castle Grounds,B22LB000020402,
http://statistics.data.gov.uk/id/local-authority/29UP,Tonbridge & Malling Borough Council,12/7/2022,0021038294/1,21038294, 226.39,Beemat TA Primo Play Ltd,01867300,,Initial Furniture & Equipment,Capital Renewals Leisure,P05KGBC0109906,210057012
http://statistics.data.gov.uk/id/local-authority/29UP,Tonbridge & Malling Borough Council,12/7/2022,0021038296/1,21038296, 2055.85,KCC - L.A.S.E.R Commercial Services ,00184300,,Electricity,Haysden Country Park,B22LC000021002,
http://statistics.data.gov.uk/id/local-authority/29UP,Tonbridge & Malling Borough Council,12/7/2022,0021038297/1,21038297, 6260.56,KCC - L.A.S.E.R Commercial Services ,00184300,,Electricity,Haysden Country Park,B22LC000021002,
http://statistics.data.gov.uk/id/local-authority/29UP,Tonbridge & Malling Borough Council,12/7/2022,0021038298/1,21038298, 197.05,KCC - L.A.S.E.R Commercial Services ,00184300,,Electricity,Open Spaces & Amenity Areas,B22LE000021002,
http://statistics.data.gov.uk/id/local-authority/29UP,Tonbridge & Malling Borough Council,12/7/2022,0021038299/1,21038299, 110.00,Flash Mobile Welding Services Ltd,01189200,,Maintenance of Play Equipment,Open Spaces & Amenity Areas,B22LE000020503,
http://statistics.data.gov.uk/id/local-authority/29UP,Tonbridge & Malling Borough Council,12/7/2022,0021038300/1,21038300, 1577.00,Elite Stewarding and Security Solutions,01743600,,Events Support,Events Development,B41TJ000044041,
http://statistics.data.gov.uk/id/local-authority/29UP,Tonbridge & Malling Borough Council,12/7/2022,0021038301/1,21038301, 485.00,David Hodgkinson Photographer,01068900,,Marketing,Events Development,B41TJZ99944215,210057061
http://statistics.data.gov.uk/id/local-authority/29UP,Tonbridge & Malling Borough Council,12/7/2022,0021038302/1,21038302, 19.00,C & J Workwear ,01571300,,Purchases,Haysden Country Park,B22LC000040101,320003463
http://statistics.data.gov.uk/id/local-authority/29UP,Tonbridge & Malling Borough Council,12/7/2022,0021038303/1,21038303, 21497.43,Landscape Services Ltd,00057600,,Grounds Maintenance Contract,Sports Grounds,B13ET000050103,
http://statistics.data.gov.uk/id/local-authority/29UP,Tonbridge & Malling Borough Council,12/7/2022,0021038303/10,21038303, 157.16,Landscape Services Ltd,00057600,,Grounds Maintenance Contract,Churchyards St Stephens,B28MY000050103,
http://statistics.data.gov.uk/id/local-authority/29UP,Tonbridge & Malling Borough Council,12/7/2022,0021038303/11,21038303, 173.71,Landscape Services Ltd,00057600,,Grounds Maintenance Contract,Grounds,D21FF000050103,
http://statistics.data.gov.uk/id/local-authority/29UP,Tonbridge & Malling Borough Council,12/7/2022,0021038303/12,21038303, 329.46,Landscape Services Ltd,00057600,,Maintenance of Grounds,Parking Off-Street,E10HA000020402,
http://statistics.data.gov.uk/id/local-authority/29UP,Tonbridge & Malling Borough Council,12/7/2022,0021038303/13,21038303, 1033.20,Landscape Services Ltd,00057600,,Maintenance of Grounds,Parking Off-Street,E10HAE00120402,
http://statistics.data.gov.uk/id/local-authority/29UP,Tonbridge & Malling Borough Council,12/7/2022,0021038303/14,21038303, 98.11,Landscape Services Ltd,00057600,,Maintenance of Grounds,Parking Off-Street,E10HAE00220402,
http://statistics.data.gov.uk/id/local-authority/29UP,Tonbridge & Malling Borough Council,12/7/2022,0021038303/15,21038303, 88.97,Landscape Services Ltd,00057600,,Maintenance of Grounds,Parking Off-Street,E10HAE00320402,
http://statistics.data.gov.uk/id/local-authority/29UP,Tonbridge & Malling Borough Council,12/7/2022,0021038303/16,21038303, 22.19,Landscape Services Ltd,00057600,,Maintenance of Grounds,Parking Off-Street,E10HAE00420402,
http://statistics.data.gov.uk/id/local-authority/29UP,Tonbridge & Malling Borough Council,12/7/2022,0021038303/17,21038303, 0.57,Landscape Services Ltd,00057600,,Maintenance of Grounds,Parking Off-Street,E10HAE00520402,
http://statistics.data.gov.uk/id/local-authority/29UP,Tonbridge & Malling Borough Council,12/7/2022,0021038303/18,21038303, 62.11,Landscape Services Ltd,00057600,,Maintenance of Grounds,Parking Off-Street,E10HAE00620402,
http://statistics.data.gov.uk/id/local-authority/29UP,Tonbridge & Malling Borough Council,12/7/2022,0021038303/19,21038303, 145.01,Landscape Services Ltd,00057600,,Maintenance of Grounds,Parking Off-Street,E10HAE01020402,
http://statistics.data.gov.uk/id/local-authority/29UP,Tonbridge & Malling Borough Council,12/7/2022,0021038303/2,21038303, 7461.13,Landscape Services Ltd,00057600,,Grounds Maintenance Contract,Tonbridge Castle Grounds,B22LB000050103,
http://statistics.data.gov.uk/id/local-authority/29UP,Tonbridge & Malling Borough Council,12/7/2022,0021038303/20,21038303, 3.21,Landscape Services Ltd,00057600,,Maintenance of Grounds,Parking Off-Street,E10HAE01220402,
http://statistics.data.gov.uk/id/local-authority/29UP,Tonbridge & Malling Borough Council,12/7/2022,0021038303/21,21038303, 7.09,Landscape Services Ltd,00057600,,Maintenance of Grounds,Parking Off-Street,E10HAE01320402,
http://statistics.data.gov.uk/id/local-authority/29UP,Tonbridge & Malling Borough Council,12/7/2022,0021038303/22,21038303, 29.50,Landscape Services Ltd,00057600,,Maintenance of Grounds,Parking Off-Street,E10HAE01520402,
http://statistics.data.gov.uk/id/local-authority/29UP,Tonbridge & Malling Borough Council,12/7/2022,0021038303/23,21038303, 57.64,Landscape Services Ltd,00057600,,Maintenance of Grounds,Parking Off-Street,E10HAE01620402,
http://statistics.data.gov.uk/id/local-authority/29UP,Tonbridge & Malling Borough Council,12/7/2022,0021038303/24,21038303, 23.42,Landscape Services Ltd,00057600,,Maintenance of Grounds,Parking Off-Street,E10HAE01720402,
http://statistics.data.gov.uk/id/local-authority/29UP,Tonbridge & Malling Borough Council,12/7/2022,0021038303/25,21038303, 14.39,Landscape Services Ltd,00057600,,Maintenance of Grounds,Parking Off-Street,E10HAE02120402,
http://statistics.data.gov.uk/id/local-authority/29UP,Tonbridge & Malling Borough Council,12/7/2022,0021038303/26,21038303, 22.91,Landscape Services Ltd,00057600,,Maintenance of Grounds,Parking Off-Street,E10HAE02320402,
http://statistics.data.gov.uk/id/local-authority/29UP,Tonbridge & Malling Borough Council,12/7/2022,0021038303/27,21038303, 87.83,Landscape Services Ltd,00057600,,Maintenance of Grounds,Parking Off-Street,E10HAE02820402,
http://statistics.data.gov.uk/id/local-authority/29UP,Tonbridge & Malling Borough Council,12/7/2022,0021038303/28,21038303, 23.78,Landscape Services Ltd,00057600,,Maintenance of Grounds,Parking Off-Street,E10HAE04020402,
http://statistics.data.gov.uk/id/local-authority/29UP,Tonbridge & Malling Borough Council,12/7/2022,0021038303/29,21038303, 78.42,Landscape Services Ltd,00057600,,Maintenance of Grounds,Parking Off-Street,E10HAE04520402,
http://statistics.data.gov.uk/id/local-authority/29UP,Tonbridge & Malling Borough Council,12/7/2022,0021038303/3,21038303, 56.77,Landscape Services Ltd,00057600,,Trade Refuse Charges,Haysden Country Park,B22LC000044008,
http://statistics.data.gov.uk/id/local-authority/29UP,Tonbridge & Malling Borough Council,12/7/2022,0021038303/4,21038303, 487.02,Landscape Services Ltd,00057600,,Litter Collection,Haysden Country Park,B22LC000044061,
http://statistics.data.gov.uk/id/local-authority/29UP,Tonbridge & Malling Borough Council,12/7/2022,0021038303/5,21038303, 1674.08,Landscape Services Ltd,00057600,,Grounds Maintenance Contract,Haysden Country Park,B22LC000050103,
http://statistics.data.gov.uk/id/local-authority/29UP,Tonbridge & Malling Borough Council,12/7/2022,0021038303/6,21038303, 583.97,Landscape Services Ltd,00057600,,Grounds Maintenance Contract,Haysden Country Park,B22LC000050103,
http://statistics.data.gov.uk/id/local-authority/29UP,Tonbridge & Malling Borough Council,12/7/2022,0021038303/7,21038303, 12393.51,Landscape Services Ltd,00057600,,Grounds Maintenance Contract,Open Spaces & Amenity Areas,B22LE000050103,
http://statistics.data.gov.uk/id/local-authority/29UP,Tonbridge & Malling Borough Council,12/7/2022,0021038303/8,21038303, 4577.19,Landscape Services Ltd,00057600,,Grounds Maintenance Contract,Cemetery,B26MP000050103,
http://statistics.data.gov.uk/id/local-authority/29UP,Tonbridge & Malling Borough Council,12/7/2022,0021038303/9,21038303, 216.11,Landscape Services Ltd,00057600,,Grounds Maintenance Contract,Churchyards St Peter & St Paul,B28MX000050103,
http://statistics.data.gov.uk/id/local-authority/29UP,Tonbridge & Malling Borough Council,12/7/2022,0021038304/1,21038304, 1500.00,Snodland Town Council,00092700,,Sports Development Programme,Sports Partnerships,B39TD000044097,210057067
http://statistics.data.gov.uk/id/local-authority/29UP,Tonbridge & Malling Borough Council,12/7/2022,0021038305/1,21038305, 490.33,Snodland Town Council,00092700,,Community Group Funding,Leisure Planning & Policy,B37SD000047028,210057065
http://statistics.data.gov.uk/id/local-authority/29UP,Tonbridge & Malling Borough Council,12/7/2022,0021038306/1,21038306, 3106.75,Arnold Tarmac Ltd,01685100,,Maintenance of Grounds,Open Spaces & Amenity Areas,B22LE000020402,210057034
http://statistics.data.gov.uk/id/local-authority/29UP,Tonbridge & Malling Borough Council,12/7/2022,0022027233/1,22027233, 387.37,Urbaser LTD,01718800,,Maintenance of Grounds,Sports Grounds,B13ET000020402,
http://statistics.data.gov.uk/id/local-authority/29UP,Tonbridge & Malling Borough Council,12/7/2022,0022027233/10,22027233, 60.22,Urbaser LTD,01718800,,Maintenance of Grounds,Grounds,D21FF000020402,
http://statistics.data.gov.uk/id/local-authority/29UP,Tonbridge & Malling Borough Council,12/7/2022,0022027233/11,22027233, 184.19,Urbaser LTD,01718800,,Maintenance of Grounds,Parking Off-Street,E10HA000020402,
http://statistics.data.gov.uk/id/local-authority/29UP,Tonbridge & Malling Borough Council,12/7/2022,0022027233/12,22027233, 4686.59,Urbaser LTD,01718800,,Maintenance of Grounds,Parking Off-Street,E10HAE00120402,
http://statistics.data.gov.uk/id/local-authority/29UP,Tonbridge & Malling Borough Council,12/7/2022,0022027233/13,22027233, 504.84,Urbaser LTD,01718800,,Maintenance of Grounds,Parking Off-Street,E10HAE00220402,
http://statistics.data.gov.uk/id/local-authority/29UP,Tonbridge & Malling Borough Council,12/7/2022,0022027233/14,22027233, 315.82,Urbaser LTD,01718800,,Maintenance of Grounds,Parking Off-Street,E10HAE00320402,
http://statistics.data.gov.uk/id/local-authority/29UP,Tonbridge & Malling Borough Council,12/7/2022,0022027233/15,22027233, 1651.73,Urbaser LTD,01718800,,Maintenance of Grounds,Parking Off-Street,E10HAE00420402,
http://statistics.data.gov.uk/id/local-authority/29UP,Tonbridge & Malling Borough Council,12/7/2022,0022027233/16,22027233, 274.48,Urbaser LTD,01718800,,Maintenance of Grounds,Parking Off-Street,E10HAE00520402,
http://statistics.data.gov.uk/id/local-authority/29UP,Tonbridge & Malling Borough Council,12/7/2022,0022027233/17,22027233, 1023.71,Urbaser LTD,01718800,,Maintenance of Grounds,Parking Off-Street,E10HAE00620402,
http://statistics.data.gov.uk/id/local-authority/29UP,Tonbridge & Malling Borough Council,12/7/2022,0022027233/18,22027233, 8.63,Urbaser LTD,01718800,,Maintenance of Grounds,Parking Off-Street,E10HAE00820402,
http://statistics.data.gov.uk/id/local-authority/29UP,Tonbridge & Malling Borough Council,12/7/2022,0022027233/19,22027233, 8.52,Urbaser LTD,01718800,,Maintenance of Grounds,Parking Off-Street,E10HAE00920402,
http://statistics.data.gov.uk/id/local-authority/29UP,Tonbridge & Malling Borough Council,12/7/2022,0022027233/2,22027233, 82.44,Urbaser LTD,01718800,,Maintenance of Grounds,Poult Wood Golf Centre,B21KE000020402,
http://statistics.data.gov.uk/id/local-authority/29UP,Tonbridge & Malling Borough Council,12/7/2022,0022027233/20,22027233, 20.23,Urbaser LTD,01718800,,Maintenance of Grounds,Parking Off-Street,E10HAE01020402,
http://statistics.data.gov.uk/id/local-authority/29UP,Tonbridge & Malling Borough Council,12/7/2022,0022027233/21,22027233, 96.12,Urbaser LTD,01718800,,Maintenance of Grounds,Parking Off-Street,E10HAE01120402,
http://statistics.data.gov.uk/id/local-authority/29UP,Tonbridge & Malling Borough Council,12/7/2022,0022027233/22,22027233, 60.48,Urbaser LTD,01718800,,Maintenance of Grounds,Parking Off-Street,E10HAE01220402,
http://statistics.data.gov.uk/id/local-authority/29UP,Tonbridge & Malling Borough Council,12/7/2022,0022027233/23,22027233, 1146.81,Urbaser LTD,01718800,,Maintenance of Grounds,Parking Off-Street,E10HAE01320402,
http://statistics.data.gov.uk/id/local-authority/29UP,Tonbridge & Malling Borough Council,12/7/2022,0022027233/24,22027233, 87.22,Urbaser LTD,01718800,,Maintenance of Grounds,Parking Off-Street,E10HAE01420402,
http://statistics.data.gov.uk/id/local-authority/29UP,Tonbridge & Malling Borough Council,12/7/2022,0022027233/25,22027233, 268.78,Urbaser LTD,01718800,,Maintenance of Grounds,Parking Off-Street,E10HAE01520402,
http://statistics.data.gov.uk/id/local-authority/29UP,Tonbridge & Malling Borough Council,12/7/2022,0022027233/26,22027233, 289.08,Urbaser LTD,01718800,,Maintenance of Grounds,Parking Off-Street,E10HAE01620402,
http://statistics.data.gov.uk/id/local-authority/29UP,Tonbridge & Malling Borough Council,12/7/2022,0022027233/27,22027233, 853.41,Urbaser LTD,01718800,,Maintenance of Grounds,Parking Off-Street,E10HAE01720402,
http://statistics.data.gov.uk/id/local-authority/29UP,Tonbridge & Malling Borough Council,12/7/2022,0022027233/28,22027233, 244.95,Urbaser LTD,01718800,,Maintenance of Grounds,Parking Off-Street,E10HAE01920402,
http://statistics.data.gov.uk/id/local-authority/29UP,Tonbridge & Malling Borough Council,12/7/2022,0022027233/29,22027233, 538.07,Urbaser LTD,01718800,,Maintenance of Grounds,Parking Off-Street,E10HAE02020402,
http://statistics.data.gov.uk/id/local-authority/29UP,Tonbridge & Malling Borough Council,12/7/2022,0022027233/3,22027233, 34.02,Urbaser LTD,01718800,,Maintenance of Grounds,Haysden Country Park,B22LC000020402,
http://statistics.data.gov.uk/id/local-authority/29UP,Tonbridge & Malling Borough Council,12/7/2022,0022027233/30,22027233, 18.68,Urbaser LTD,01718800,,Maintenance of Grounds,Parking Off-Street,E10HAE02120402,
http://statistics.data.gov.uk/id/local-authority/29UP,Tonbridge & Malling Borough Council,12/7/2022,0022027233/31,22027233, 123.00,Urbaser LTD,01718800,,Maintenance of Grounds,Parking Off-Street,E10HAE02220402,
http://statistics.data.gov.uk/id/local-authority/29UP,Tonbridge & Malling Borough Council,12/7/2022,0022027233/32,22027233, 1034.02,Urbaser LTD,01718800,,Maintenance of Grounds,Parking Off-Street,E10HAE02320402,
http://statistics.data.gov.uk/id/local-authority/29UP,Tonbridge & Malling Borough Council,12/7/2022,0022027233/33,22027233, 2.67,Urbaser LTD,01718800,,Maintenance of Grounds,Parking Off-Street,E10HAE02720402,
http://statistics.data.gov.uk/id/local-authority/29UP,Tonbridge & Malling Borough Council,12/7/2022,0022027233/34,22027233, 375.72,Urbaser LTD,01718800,,Maintenance of Grounds,Parking Off-Street,E10HAE02820402,
http://statistics.data.gov.uk/id/local-authority/29UP,Tonbridge & Malling Borough Council,12/7/2022,0022027233/35,22027233, 6.77,Urbaser LTD,01718800,,Maintenance of Grounds,Parking Off-Street,E10HAE02920402,
http://statistics.data.gov.uk/id/local-authority/29UP,Tonbridge & Malling Borough Council,12/7/2022,0022027233/36,22027233, 39.82,Urbaser LTD,01718800,,Maintenance of Grounds,Parking Off-Street,E10HAE03020402,
http://statistics.data.gov.uk/id/local-authority/29UP,Tonbridge & Malling Borough Council,12/7/2022,0022027233/37,22027233, 33.88,Urbaser LTD,01718800,,Maintenance of Grounds,Parking Off-Street,E10HAE03120402,
http://statistics.data.gov.uk/id/local-authority/29UP,Tonbridge & Malling Borough Council,12/7/2022,0022027233/38,22027233, 718.40,Urbaser LTD,01718800,,Maintenance of Grounds,Parking Off-Street,E10HAE04020402,
http://statistics.data.gov.uk/id/local-authority/29UP,Tonbridge & Malling Borough Council,12/7/2022,0022027233/39,22027233, 498.26,Urbaser LTD,01718800,,Maintenance of Grounds,Parking Off-Street,E10HAE04220402,
http://statistics.data.gov.uk/id/local-authority/29UP,Tonbridge & Malling Borough Council,12/7/2022,0022027233/4,22027233, 26.13,Urbaser LTD,01718800,,Dog Bin Emptying,Haysden Country Park,B22LC000044012,
http://statistics.data.gov.uk/id/local-authority/29UP,Tonbridge & Malling Borough Council,12/7/2022,0022027233/40,22027233, 1430.15,Urbaser LTD,01718800,,Maintenance of Grounds,Parking Off-Street,E10HAE04520402,
http://statistics.data.gov.uk/id/local-authority/29UP,Tonbridge & Malling Borough Council,12/7/2022,0022027233/41,22027233, 92676.10,Urbaser LTD,01718800,,Contract Payments,Refuse Collection,H20SA000054001,
http://statistics.data.gov.uk/id/local-authority/29UP,Tonbridge & Malling Borough Council,12/7/2022,0022027233/42,22027233, 946.15,Urbaser LTD,01718800,,Responsible Dog Ownership,Street Scene,H23SD000044050,
http://statistics.data.gov.uk/id/local-authority/29UP,Tonbridge & Malling Borough Council,12/7/2022,0022027233/43,22027233, 56523.64,Urbaser LTD,01718800,,Contract Payments,Street Scene,H23SD000054001,
http://statistics.data.gov.uk/id/local-authority/29UP,Tonbridge & Malling Borough Council,12/7/2022,0022027233/44,22027233, 356.30,Urbaser LTD,01718800,,General Maintenance,Dry Recycling,H34SR000020301,
http://statistics.data.gov.uk/id/local-authority/29UP,Tonbridge & Malling Borough Council,12/7/2022,0022027233/45,22027233, 84198.36,Urbaser LTD,01718800,,Contract Payments,Dry Recycling,H34SR000054001,
http://statistics.data.gov.uk/id/local-authority/29UP,Tonbridge & Malling Borough Council,12/7/2022,0022027233/46,22027233, 32945.93,Urbaser LTD,01718800,,Contract Payments,Food Recycling,H34SS000054001,
http://statistics.data.gov.uk/id/local-authority/29UP,Tonbridge & Malling Borough Council,12/7/2022,0022027233/47,22027233, 17888.09,Urbaser LTD,01718800,,Contract Payments,Garden Waste Recycling,H34ST000054001,
http://statistics.data.gov.uk/id/local-authority/29UP,Tonbridge & Malling Borough Council,12/7/2022,0022027233/5,22027233, 740.63,Urbaser LTD,01718800,,Maintenance of Grounds,Open Spaces & Amenity Areas,B22LE000020402,
http://statistics.data.gov.uk/id/local-authority/29UP,Tonbridge & Malling Borough Council,12/7/2022,0022027233/6,22027233, 13.93,Urbaser LTD,01718800,,Dog Bin Emptying,Open Spaces & Amenity Areas,B22LE000044012,
http://statistics.data.gov.uk/id/local-authority/29UP,Tonbridge & Malling Borough Council,12/7/2022,0022027233/7,22027233, 24.04,Urbaser LTD,01718800,,Maintenance of Grounds,Countryside/Woodland Mgt,B22LG000020402,
http://statistics.data.gov.uk/id/local-authority/29UP,Tonbridge & Malling Borough Council,12/7/2022,0022027233/8,22027233, 72.20,Urbaser LTD,01718800,,Maintenance of Grounds,Leybourne Lakes Country Park,B22LK000020402,
http://statistics.data.gov.uk/id/local-authority/29UP,Tonbridge & Malling Borough Council,12/7/2022,0022027233/9,22027233, 26.13,Urbaser LTD,01718800,,Dog Bin Emptying,Leybourne Lakes Country Park,B22LK000044012,
http://statistics.data.gov.uk/id/local-authority/29UP,Tonbridge & Malling Borough Council,12/7/2022,0022027234/1,22027234, 2040.00,Smart Property Professionals,01815100,,Temporary Accommodation,Homelessness,C01AA000044051,
http://statistics.data.gov.uk/id/local-authority/29UP,Tonbridge & Malling Borough Council,12/7/2022,0022027235/1,22027235, 16302.00,Craemer UK LTD,01616400,,Initial Furniture & Equipment,Refuse Bins Growth/Replacement,P02DA000009906,220003280
http://statistics.data.gov.uk/id/local-authority/29UP,Tonbridge & Malling Borough Council,12/7/2022,0022027236/1,22027236, 1236.00,On Site Wheelie Washers,01069700,,Other Expenses,Refuse Collection,H20SA000048010,
http://statistics.data.gov.uk/id/local-authority/29UP,Tonbridge & Malling Borough Council,12/7/2022,0022027237/1,22027237, 5744.88,Town & Country Housing Group,01385400,,Countywide DFG Project,Private Sector Housing Renewal,C03BD000044031,
http://statistics.data.gov.uk/id/local-authority/29UP,Tonbridge & Malling Borough Council,12/7/2022,0022027238/1,22027238, 16085.65,Town & Country Housing Group,01385400,,Countywide DFG Project,Private Sector Housing Renewal,C03BD000044031,
http://statistics.data.gov.uk/id/local-authority/29UP,Tonbridge & Malling Borough Council,12/7/2022,0022027239/1,22027239, 9196.30,Town & Country Housing Group,01385400,,Countywide DFG Project,Private Sector Housing Renewal,C03BD000044031,
http://statistics.data.gov.uk/id/local-authority/29UP,Tonbridge & Malling Borough Council,12/7/2022,0022027240/1,22027240, 8500.00,Town & Country Housing Group,01385400,,Countywide DFG Project,Private Sector Housing Renewal,C03BD000044031,
http://statistics.data.gov.uk/id/local-authority/29UP,Tonbridge & Malling Borough Council,12/7/2022,0022027241/1,22027241, 7631.50,Premier Property Providers,01785400,,Temporary Accommodation,Homelessness,C01AA000044051,
http://statistics.data.gov.uk/id/local-authority/29UP,Tonbridge & Malling Borough Council,12/7/2022,0022027242/1,22027242, 10500.00,Less Homeless Ltd,01489300,,Temporary Accommodation,Homelessness,C01AA000044051,
http://statistics.data.gov.uk/id/local-authority/29UP,Tonbridge & Malling Borough Council,12/7/2022,0022027243/1,22027243, 5138.00,Kent Accommodation Ltd,01722000,,Temporary Accommodation,Homelessness,C01AA000044051,
http://statistics.data.gov.uk/id/local-authority/29UP,Tonbridge & Malling Borough Council,12/7/2022,0022027244/1,22027244, 3720.00,House to Home Lettings Ltd ,01647600,,Temporary Accommodation,Homelessness,C01AA000044051,
http://statistics.data.gov.uk/id/local-authority/29UP,Tonbridge & Malling Borough Council,12/7/2022,0022027245/1,22027245, 841.60,Green Recycling LTD,01563000,,Paper Recycling,Dry Recycling,H34SR000054024,
http://statistics.data.gov.uk/id/local-authority/29UP,Tonbridge & Malling Borough Council,12/7/2022,0022027246/1,22027246, 4445.74,Clarion Housing,01776300,,Temporary Accommodation,Homelessness,C01AA000044051,
http://statistics.data.gov.uk/id/local-authority/29UP,Tonbridge & Malling Borough Council,12/7/2022,0022027247/1,22027247, 735.00,1st  Steps Housing Kent,01716100,,Temporary Accommodation,Homelessness,C01AA000044051,
http://statistics.data.gov.uk/id/local-authority/29UP,Tonbridge & Malling Borough Council,12/7/2022,0022027248/1,22027248, 520.00,Britains Limited,01743900,,Repairs & Mtce to Buildings,Homelessness,C01AA000020101,220003293
http://statistics.data.gov.uk/id/local-authority/29UP,Tonbridge & Malling Borough Council,12/7/2022,0022027249/1,22027249, 1320.00,Simon Niblett Lettings,00072600,,Temporary Accommodation,Homelessness,C01AA000044051,
http://statistics.data.gov.uk/id/local-authority/29UP,Tonbridge & Malling Borough Council,12/7/2022,0022027250/1,22027250, 9558.00,Simon Niblett Lettings,00072600,,Temporary Accommodation,Homelessness,C01AA000044051,
http://statistics.data.gov.uk/id/local-authority/29UP,Tonbridge & Malling Borough Council,12/7/2022,0022027251/1,22027251, 1650.00,Kent Housing,01503200,,Temporary Accommodation,Homelessness,C01AA000044051,
http://statistics.data.gov.uk/id/local-authority/29UP,Tonbridge & Malling Borough Council,12/7/2022,0022027252/1,22027252, 4322.11,Ward Security LTD,01490000,,Dog Warden,Street Scene,H23SD000044100,
http://statistics.data.gov.uk/id/local-authority/29UP,Tonbridge & Malling Borough Council,12/7/2022,0022027254/1,22027254, 821.90,KCC - L.A.S.E.R Commercial Services ,00184300,,Electricity,Public Conveniences,H22SCH00421002,
http://statistics.data.gov.uk/id/local-authority/29UP,Tonbridge & Malling Borough Council,12/7/2022,0022027255/1,22027255, 750.67,KCC - L.A.S.E.R Commercial Services ,00184300,,Electricity,Public Conveniences,H22SCH00421002,
http://statistics.data.gov.uk/id/local-authority/29UP,Tonbridge & Malling Borough Council,12/7/2022,0022027256/1,22027256, 490.00,Countrystyle Group,00835900,781981681,Collection of Card,Dry Recycling,H34SR000054008,
http://statistics.data.gov.uk/id/local-authority/29UP,Tonbridge & Malling Borough Council,12/7/2022,0022027257/1,22027257, 37.00,Biffa Waste Services Ltd,01284500,,Trade Refuse Charges,Cleaning & Security,D21FD000044008,
http://statistics.data.gov.uk/id/local-authority/29UP,Tonbridge & Malling Borough Council,12/7/2022,0022027258/1,22027258, 285.12,Town & Country Housing Group,01385400,,Other Expenses,Disabled Facilities Grant Mand,P03AC000009908,
http://statistics.data.gov.uk/id/local-authority/29UP,Tonbridge & Malling Borough Council,12/7/2022,0022027259/1,22027259, 1979.97,Elite Complete Build LTD,01625900,,Other Expenses,Disabled Facilities Grant Mand,P03AC000009908,
http://statistics.data.gov.uk/id/local-authority/29UP,Tonbridge & Malling Borough Council,12/7/2022,0022027260/1,22027260, 520.78,Town & Country Housing Group,01385400,,Other Expenses,Disabled Facilities Grant Mand,P03AC000009908,
http://statistics.data.gov.uk/id/local-authority/29UP,Tonbridge & Malling Borough Council,12/7/2022,0022027261/1,22027261, 3616.50,Coldwell & Shawyer Ltd,01740300,,Other Expenses,Disabled Facilities Grant Mand,P03AC000009908,
http://statistics.data.gov.uk/id/local-authority/29UP,Tonbridge & Malling Borough Council,12/7/2022,0022027262/1,22027262, 3674.30,Town & Country Housing Group,01385400,,Other Expenses,Disabled Facilities Grant Mand,P03AC000009908,
http://statistics.data.gov.uk/id/local-authority/29UP,Tonbridge & Malling Borough Council,12/7/2022,0022027263/1,22027263, 377.80,Elite Complete Build LTD,01625900,,Other Expenses,Disabled Facilities Grant Mand,P03AC000009908,
http://statistics.data.gov.uk/id/local-authority/29UP,Tonbridge & Malling Borough Council,12/7/2022,0022027264/1,22027264, 2154.83,The Care Group-Housing & Care Trust,01699600,,Temporary Accommodation,Homelessness,C01AA000044051,
http://statistics.data.gov.uk/id/local-authority/29UP,Tonbridge & Malling Borough Council,12/7/2022,0022027265/1,22027265, 19150.50,Social & Community Care,01768400,,Temporary Accommodation,Homelessness,C01AA000044051,
http://statistics.data.gov.uk/id/local-authority/29UP,Tonbridge & Malling Borough Council,12/7/2022,0022027266/1,22027266, 20400.00,SPA CAFFE LIMITED,00127100,,Temporary Accommodation,Homelessness,C01AA000044051,
http://statistics.data.gov.uk/id/local-authority/29UP,Tonbridge & Malling Borough Council,12/7/2022,0022027267/1,22027267, 3486.00,Simply Rented Ltd ,01691400,,Temporary Accommodation,Homelessness,C01AA000044051,
http://statistics.data.gov.uk/id/local-authority/29UP,Tonbridge & Malling Borough Council,12/7/2022,0022027268/1,22027268, 311.73,Maidstone Borough Council,01173700,,Council Tax,Homelessness,C01AA000023002,
http://statistics.data.gov.uk/id/local-authority/29UP,Tonbridge & Malling Borough Council,12/7/2022,0022027269/1,22027269, 26218.00,Paramount Independent Property Suppliers,01595300,,Temporary Accommodation,Homelessness,C01AA000044051,
http://statistics.data.gov.uk/id/local-authority/29UP,Tonbridge & Malling Borough Council,12/7/2022,0031019084/3,31019084, 4.83,REDACTED PERSONAL DATA,01344100,,Purchases,Security Services Management,E09GA000040101,
http://statistics.data.gov.uk/id/local-authority/29UP,Tonbridge & Malling Borough Council,12/7/2022,0031019084/4,31019084, 8.75,REDACTED PERSONAL DATA,01344100,,Purchases,Security Services Management,E09GA000040101,
http://statistics.data.gov.uk/id/local-authority/29UP,Tonbridge & Malling Borough Council,12/7/2022,0031019085/1,31019085, 73.37,Shell U.K. Oil Products Limited,01673300,,"Petrol, Diesel & Oil",Patrolling,B22LF000030106,
http://statistics.data.gov.uk/id/local-authority/29UP,Tonbridge & Malling Borough Council,12/7/2022,0031019085/2,31019085, 99.60,Shell U.K. Oil Products Limited,01673300,,"Petrol, Diesel & Oil",Parking Off-Street,E10HA000030106,
http://statistics.data.gov.uk/id/local-authority/29UP,Tonbridge & Malling Borough Council,12/7/2022,0031019085/3,31019085, 99.60,Shell U.K. Oil Products Limited,01673300,,"Petrol, Diesel & Oil",Parking On-Street,E10HD000030106,
http://statistics.data.gov.uk/id/local-authority/29UP,Tonbridge & Malling Borough Council,12/7/2022,0031019087/3,31019087, 2779.00,Tonbridge & Malling Leisure Trust,01469100,,Ticket Refunds - Lower Castle,Parking Off-Street,E10HAE01344199,
http://statistics.data.gov.uk/id/local-authority/29UP,Tonbridge & Malling Borough Council,12/7/2022,0031019090/1,31019090, 675.00,PSR Lighting & Signs Ltd,01265400,,Tonbridge Christmas Lighting,Eco Dev & Reg Ton Chris Light,D52TF000047015,210057001
http://statistics.data.gov.uk/id/local-authority/29UP,Tonbridge & Malling Borough Council,12/7/2022,0031019091/3,31019091, 1080.00,Marston,01485000,,Adjudication & Enforcement Ser,Parking Off-Street,E10HA000044230,
http://statistics.data.gov.uk/id/local-authority/29UP,Tonbridge & Malling Borough Council,12/7/2022,0031019092/3,31019092, 1584.80,CDER Group,01773300,,Adjudication & Enforcement Ser,Parking Off-Street,E10HA000044230,
http://statistics.data.gov.uk/id/local-authority/29UP,Tonbridge & Malling Borough Council,12/7/2022,0031019093/1,31019093, 4335.00,Arnold Tarmac Ltd,01685100,,Maintenance of Grounds,Cemetery,B26MP000020402,210057036
http://statistics.data.gov.uk/id/local-authority/29UP,Tonbridge & Malling Borough Council,12/7/2022,0032009947/1,32009947, 1939.30,The Oyster Partnership,01196400,,Temporary Staff,Planning Sals&Overheads,D01AJDJ0111300,
http://statistics.data.gov.uk/id/local-authority/29UP,Tonbridge & Malling Borough Council,12/7/2022,0032009948/1,32009948, 1617.14,The Oyster Partnership,01196400,,Temporary Staff,Planning Sals&Overheads,D01AJDJ0111300,
http://statistics.data.gov.uk/id/local-authority/29UP,Tonbridge & Malling Borough Council,12/7/2022,0032009949/1,32009949, 1884.95,The Oyster Partnership,01196400,,Temporary Staff,Planning Sals&Overheads,D01AJDJ0111300,
http://statistics.data.gov.uk/id/local-authority/29UP,Tonbridge & Malling Borough Council,12/7/2022,0032009950/1,32009950, 440.00,Haymarket Media Group Ltd,00299600,,Development of Local Plan,Development of Local Plan,A01AE000044023,
http://statistics.data.gov.uk/id/local-authority/29UP,Tonbridge & Malling Borough Council,12/7/2022,0032009951/1,32009951, 2940.11,G2 Recruitment Solutions,01786000,,Temporary Staff,Planning Sals&Overheads,D01AJDJ0111300,
http://statistics.data.gov.uk/id/local-authority/29UP,Tonbridge & Malling Borough Council,12/7/2022,0032009952/1,32009952, 2590.00,G2 Recruitment Solutions,01786000,,Temporary Staff,Planning Sals&Overheads,D01AJDJ0111300,
http://statistics.data.gov.uk/id/local-authority/29UP,Tonbridge & Malling Borough Council,12/7/2022,0032009953/1,32009953, 171.36,KM Media Group Ltd,00053900,,Advertising General,Development Management,A01ABZ99944216,320003469
http://statistics.data.gov.uk/id/local-authority/29UP,Tonbridge & Malling Borough Council,12/7/2022,0032009954/3,32009954, 1548.00,Carrington West Limited,01844500,,Temporary Staff,Planning Sals&Overheads,D01AJDJ0111300,
http://statistics.data.gov.uk/id/local-authority/29UP,Tonbridge & Malling Borough Council,12/7/2022,0041034981/1,41034981, 20.00,Computershare Voucher Services,01212600,,Childcare Scheme,Finance Sals&Overheads,D01AFDF0911136,
http://statistics.data.gov.uk/id/local-authority/29UP,Tonbridge & Malling Borough Council,12/7/2022,0041034981/2,41034981, 1.40,Computershare Voucher Services,01212600,,National Insurance,Finance Sals&Overheads,D01AFDF0911191,
http://statistics.data.gov.uk/id/local-authority/29UP,Tonbridge & Malling Borough Council,12/7/2022,0041034981/3,41034981, 20.00,Computershare Voucher Services,01212600,,Childcare Scheme,Env Hlth & Hsg Sals&Overheads,D01AVDV0211136,
http://statistics.data.gov.uk/id/local-authority/29UP,Tonbridge & Malling Borough Council,12/7/2022,0041034981/4,41034981, 1.40,Computershare Voucher Services,01212600,,National Insurance,Env Hlth & Hsg Sals&Overheads,D01AVDV0211191,
http://statistics.data.gov.uk/id/local-authority/29UP,Tonbridge & Malling Borough Council,12/7/2022,0041034981/5,41034981, 243.00,Computershare Voucher Services,01212600,,Childcare Scheme,Env Hlth & Hsg Sals&Overheads,D01AVDV0711136,
http://statistics.data.gov.uk/id/local-authority/29UP,Tonbridge & Malling Borough Council,12/7/2022,0041034981/6,41034981, 17.01,Computershare Voucher Services,01212600,,National Insurance,Env Hlth & Hsg Sals&Overheads,D01AVDV0711191,
http://statistics.data.gov.uk/id/local-authority/29UP,Tonbridge & Malling Borough Council,12/7/2022,0041034982/1,41034982, 87.54,Adelante Software Limited,01393800,812115871,Credit Card Commission,Banking Arrangements,D43QK000044082,
http://statistics.data.gov.uk/id/local-authority/29UP,Tonbridge & Malling Borough Council,12/7/2022,0041034983/1,41034983, 1292.00,Greenhalgh Kerr,01590200,,Bailiffs Commission,Local Revenue & NNDR Collect,D41QA000044075,
http://statistics.data.gov.uk/id/local-authority/29UP,Tonbridge & Malling Borough Council,12/7/2022,0041034983/2,41034983, 102.00,Greenhalgh Kerr,01590200,,Bailiffs Commission,Local Revenue & NNDR Collect,D41QA000044075,
http://statistics.data.gov.uk/id/local-authority/29UP,Tonbridge & Malling Borough Council,12/7/2022,0041034984/1,41034984, 2905.00,Greenhalgh Kerr,01590200,,Bailiffs Commission,Local Revenue & NNDR Collect,D41QA000044075,
http://statistics.data.gov.uk/id/local-authority/29UP,Tonbridge & Malling Borough Council,12/7/2022,0041034985/1,41034985, 1304.93,Maidstone Borough Council,01173700,,Bailiffs Commission,Local Revenue & NNDR Collect,D41QA000044075,
http://statistics.data.gov.uk/id/local-authority/29UP,Tonbridge & Malling Borough Council,12/7/2022,0041034986/1,41034986, 1455.10,Maidstone Borough Council,01173700,,Bailiffs Commission,Local Revenue & NNDR Collect,D41QA000044075,
http://statistics.data.gov.uk/id/local-authority/29UP,Tonbridge & Malling Borough Council,12/7/2022,0041034987/1,41034987, 16.61,Rundle & Co Ltd,00087200,,Bailiffs Commission,Local Revenue & NNDR Collect,D41QA000044075,
http://statistics.data.gov.uk/id/local-authority/29UP,Tonbridge & Malling Borough Council,12/7/2022,0051008747/1,51008747, 30.00,Maidstone & Tun Wells NHS Trust,00067100,,Occuptional Health Medicals,Health Care,D10DBDC0113311,
http://statistics.data.gov.uk/id/local-authority/29UP,Tonbridge & Malling Borough Council,12/7/2022,0051008747/2,51008747, 45.00,Maidstone & Tun Wells NHS Trust,00067100,,Occuptional Health Medicals,Health Care,D10DBDE0513311,
http://statistics.data.gov.uk/id/local-authority/29UP,Tonbridge & Malling Borough Council,12/7/2022,0051008747/3,51008747, 30.00,Maidstone & Tun Wells NHS Trust,00067100,,Occuptional Health Medicals,Health Care,D10DBDE0513311,
http://statistics.data.gov.uk/id/local-authority/29UP,Tonbridge & Malling Borough Council,12/7/2022,0051008747/4,51008747, 30.00,Maidstone & Tun Wells NHS Trust,00067100,,Occuptional Health Medicals,Health Care,D10DBDJ0113311,
http://statistics.data.gov.uk/id/local-authority/29UP,Tonbridge & Malling Borough Council,12/7/2022,0051008747/5,51008747, 30.00,Maidstone & Tun Wells NHS Trust,00067100,,Occuptional Health Medicals,Health Care,D10DBDJ0213311,
http://statistics.data.gov.uk/id/local-authority/29UP,Tonbridge & Malling Borough Council,12/7/2022,0051008748/1,51008748, 60.00,Maidstone & Tun Wells NHS Trust,00067100,,Occuptional Health Medicals,Health Care,D10DBDB0313311,
http://statistics.data.gov.uk/id/local-authority/29UP,Tonbridge & Malling Borough Council,12/7/2022,0051008748/2,51008748, 72.00,Maidstone & Tun Wells NHS Trust,00067100,,Occuptional Health Medicals,Health Care,D10DBDB0313311,
http://statistics.data.gov.uk/id/local-authority/29UP,Tonbridge & Malling Borough Council,12/7/2022,0051008748/3,51008748, 72.00,Maidstone & Tun Wells NHS Trust,00067100,,Occuptional Health Medicals,Health Care,D10DBDF1113311,
http://statistics.data.gov.uk/id/local-authority/29UP,Tonbridge & Malling Borough Council,12/7/2022,0051008748/4,51008748, 30.00,Maidstone & Tun Wells NHS Trust,00067100,,Occuptional Health Medicals,Health Care,D10DBDR0013311,
http://statistics.data.gov.uk/id/local-authority/29UP,Tonbridge & Malling Borough Council,12/7/2022,0051008748/5,51008748, 30.00,Maidstone & Tun Wells NHS Trust,00067100,,Occuptional Health Medicals,Health Care,D10DBDR0313311,
http://statistics.data.gov.uk/id/local-authority/29UP,Tonbridge & Malling Borough Council,12/7/2022,0051008754/1,51008754, 265.00,APSE Asso for Public Service Excellence,01182700,248298368,Ext Fees/Prof & Tech,Training,D10DCDG0113561,510010602
http://statistics.data.gov.uk/id/local-authority/29UP,Tonbridge & Malling Borough Council,12/7/2022,0051008755/1,51008755, 265.00,APSE Asso for Public Service Excellence,01182700,248298368,Ext Fees/Prof & Tech,Training,D10DCDG0113561,510010603
http://statistics.data.gov.uk/id/local-authority/29UP,Tonbridge & Malling Borough Council,12/7/2022,0051008757/1,51008757, 329.00,Partners of Research Ltd,01874100,,Recruitment Advertising,Recruitment Expenses,D10DA000013110,510010605
http://statistics.data.gov.uk/id/local-authority/29UP,Tonbridge & Malling Borough Council,12/7/2022,0051008758/1,51008758, 895.00,Purple Griffon Limited,01875500,,Ext Fees/Prof & Tech,Training,D10DCDN0213561,510010606
http://statistics.data.gov.uk/id/local-authority/29UP,Tonbridge & Malling Borough Council,12/9/2022,0041034995/1,41034995, 1807.18,Netmail EMEA GmbH,01582300,,Software Hire & Support,Information Technology,D27KD000044059,
http://statistics.data.gov.uk/id/local-authority/29UP,Tonbridge & Malling Borough Council,12/14/2022,0011045288/1,11045288, 695.00,Envirocure Limited,00963300,,BRREP Legionella Certification,Pleasure Grounds & Open Spaces,M15HHP30001995,110069800
http://statistics.data.gov.uk/id/local-authority/29UP,Tonbridge & Malling Borough Council,12/14/2022,0011045289/1,11045289, 1090.88,Ecosan Services Ltd,01061300,,Miscellaneous Services,Cleaning & Security,D21FDDD6044015,110069923
http://statistics.data.gov.uk/id/local-authority/29UP,Tonbridge & Malling Borough Council,12/14/2022,0011045290/1,11045290, 1082.33,Ecosan Services Ltd,01061300,,Miscellaneous Services,Cleaning & Security,D21FDDD5044015,110069923
http://statistics.data.gov.uk/id/local-authority/29UP,Tonbridge & Malling Borough Council,12/14/2022,0011045291/1,11045291, 721.57,Ecosan Services Ltd,01061300,,Miscellaneous Services,Cleaning & Security,D21FDDD1044015,110069923
http://statistics.data.gov.uk/id/local-authority/29UP,Tonbridge & Malling Borough Council,12/14/2022,0011045292/1,11045292, 924.00,Spy Alarms Ltd,01608800,,BRREP Servicing-IntruderAlarm,Leybourne Lakes Country Park,M15HLP20001939,110069606
http://statistics.data.gov.uk/id/local-authority/29UP,Tonbridge & Malling Borough Council,12/14/2022,0011045293/1,11045293, 190.00,Loxton Installations Ltd,01278800,,BRREP IEE Testing,Larkfield Leisure Centre,M15HDP30001991,110069462
http://statistics.data.gov.uk/id/local-authority/29UP,Tonbridge & Malling Borough Council,12/14/2022,0011045294/1,11045294, 2000.00,Loxton Installations Ltd,01278800,,Maintenance - General,Tonbridge Castle Gatehouse,B40TG000040135,110069853
http://statistics.data.gov.uk/id/local-authority/29UP,Tonbridge & Malling Borough Council,12/14/2022,0011045294/2,11045294, 700.00,Loxton Installations Ltd,01278800,,BRREP Serv Internal Lighting,Tonbridge Castle Gatehouse,M15HKP20001957,110069853
http://statistics.data.gov.uk/id/local-authority/29UP,Tonbridge & Malling Borough Council,12/14/2022,0011045295/1,11045295, 367.00,Loxton Installations Ltd,01278800,,Other Expenses,Homeless Accommodation,P03AX000009908,110069883
http://statistics.data.gov.uk/id/local-authority/29UP,Tonbridge & Malling Borough Council,12/14/2022,0011045296/1,11045296, 593.00,Loxton Installations Ltd,01278800,,BRREP Response - General,Shops & Maisonettes,M15NAP50001997,110069867
http://statistics.data.gov.uk/id/local-authority/29UP,Tonbridge & Malling Borough Council,12/14/2022,0011045297/1,11045297, 784.00,Loxton Installations Ltd,01278800,,BRREP Servicing-CarParkLightg,Larkfield Leisure Centre,M15HDP20001944,110069854
http://statistics.data.gov.uk/id/local-authority/29UP,Tonbridge & Malling Borough Council,12/14/2022,0011045298/1,11045298, 2810.00,Loxton Installations Ltd,01278800,,BRREP Servicing-CarParkLightg,Larkfield Leisure Centre,M15HDP20001944,110069855
http://statistics.data.gov.uk/id/local-authority/29UP,Tonbridge & Malling Borough Council,12/14/2022,0011045299/1,11045299, 110.00,Triple S Lift Services,01344900,,BRREP Servicing - lifts,Angel Centre,M15HAP20001930,110069754
http://statistics.data.gov.uk/id/local-authority/29UP,Tonbridge & Malling Borough Council,12/14/2022,0011045300/1,11045300, 78.50,Triple S Lift Services,01344900,,BRREP Servicing - lifts,Gibson Building East,M15KGP20001930,110069752
http://statistics.data.gov.uk/id/local-authority/29UP,Tonbridge & Malling Borough Council,12/14/2022,0011045301/1,11045301, 759.50,Spy Alarms Ltd,01608800,,BRREP Servicing-IntruderAlarm,Leybourne Lakes Country Park,M15HLP20001939,110069926
http://statistics.data.gov.uk/id/local-authority/29UP,Tonbridge & Malling Borough Council,12/14/2022,0011045302/1,11045302, 109.00,BML Building Services Ltd,01505000,,BRREP Response - General,Tonbridge Swimming Pool,M15HBP50001997,110069762
http://statistics.data.gov.uk/id/local-authority/29UP,Tonbridge & Malling Borough Council,12/14/2022,0011045303/1,11045303, 150.00,BML Building Services Ltd,01505000,,BRREP Response - General,Larkfield Leisure Centre,M15HDP50001997,110069813
http://statistics.data.gov.uk/id/local-authority/29UP,Tonbridge & Malling Borough Council,12/14/2022,0011045304/1,11045304, 745.00,BML Building Services Ltd,01505000,,BRREP Response - General,Angel Centre,M15HAP50001997,110069884
http://statistics.data.gov.uk/id/local-authority/29UP,Tonbridge & Malling Borough Council,12/14/2022,0011045305/1,11045305, 4233.60,MEPS Consulting Ltd,01868800,,BRREP Servicing - air handling,Larkfield Leisure Centre,M15HDP20001936,110069868
http://statistics.data.gov.uk/id/local-authority/29UP,Tonbridge & Malling Borough Council,12/14/2022,0011045306/1,11045306, 266.95,Flying Colours Flagmakers Ltd,00902900,,Purchases,Ton Castle Council Chamber,D21FC000040101,110069834
http://statistics.data.gov.uk/id/local-authority/29UP,Tonbridge & Malling Borough Council,12/14/2022,0011045307/1,11045307, 990.00,Learnd UK,01226700,,BRREP BMS System Mntce/Upgrade,Larkfield Leisure Centre,M15HDP20001912,110069931
http://statistics.data.gov.uk/id/local-authority/29UP,Tonbridge & Malling Borough Council,12/14/2022,0011045308/1,11045308, 1150.00,Robert Graham T/A Sustainable Land Manag,00040700,,BRREP Response - General,Leybourne Lakes Country Park,M15HLP50001997,110069859
http://statistics.data.gov.uk/id/local-authority/29UP,Tonbridge & Malling Borough Council,12/14/2022,0011045309/1,11045309, 3500.00,Kent County Council,00322500,,Subscriptions,Mayoral & Other Member Support,D29LX000047002,110069914
http://statistics.data.gov.uk/id/local-authority/29UP,Tonbridge & Malling Borough Council,12/14/2022,0011045310/1,11045310, 990.00,Learnd UK,01226700,,BRREP BMS System Mntce/Upgrade,Tonbridge Swimming Pool,M15HBP20001912,110069930
http://statistics.data.gov.uk/id/local-authority/29UP,Tonbridge & Malling Borough Council,12/14/2022,0011045312/1,11045312, 92.00,Royal Cars,01857400,,Hospitality,Mayoral & Other Member Support,D29LX000048003,
http://statistics.data.gov.uk/id/local-authority/29UP,Tonbridge & Malling Borough Council,12/14/2022,0011045313/1,11045313, 231.15,Biffa Waste Services Ltd,01284500,,Trade Refuse Charges,Cleaning & Security,D21FD000044008,
http://statistics.data.gov.uk/id/local-authority/29UP,Tonbridge & Malling Borough Council,12/14/2022,0011045314/1,11045314, 1182.12,KCS,00054200,,Electricity,Buildings,D21FEDD5021002,
http://statistics.data.gov.uk/id/local-authority/29UP,Tonbridge & Malling Borough Council,12/14/2022,0011045315/1,11045315, 806.76,KCS,00054200,,Electricity,Buildings,D21FEDD6021002,
http://statistics.data.gov.uk/id/local-authority/29UP,Tonbridge & Malling Borough Council,12/14/2022,0011045316/1,11045316, 1094.15,Royal Mail,00086200,,Purchases,Mailsort Stock Account,K37BR000001002,
http://statistics.data.gov.uk/id/local-authority/29UP,Tonbridge & Malling Borough Council,12/14/2022,0011045316/2,11045316, 5.95,Royal Mail,00086200,,Purchases,Mailsort Stock Account,K37BR000001002,
http://statistics.data.gov.uk/id/local-authority/29UP,Tonbridge & Malling Borough Council,12/14/2022,0011045316/3,11045316, 5.95,Royal Mail,00086200,,Purchases,Mailsort Stock Account,K37BR000001002,
http://statistics.data.gov.uk/id/local-authority/29UP,Tonbridge & Malling Borough Council,12/14/2022,0011045317/1,11045317, 54.96,Royal Mail,00086200,,Postages - Business Reply,Electoral Registration,D31MF000045003,
http://statistics.data.gov.uk/id/local-authority/29UP,Tonbridge & Malling Borough Council,12/14/2022,0011045317/2,11045317, 10.00,Royal Mail,00086200,,Purchases,Business Reply Stock Account,K14AT000001002,
http://statistics.data.gov.uk/id/local-authority/29UP,Tonbridge & Malling Borough Council,12/14/2022,0011045318/1,11045318, 150.00,BML Building Services Ltd,01505000,,BRREP Window/door repairs,Tonbridge Castle / CAB,M15KFP20001919,
http://statistics.data.gov.uk/id/local-authority/29UP,Tonbridge & Malling Borough Council,12/14/2022,0011045319/1,11045319, 383.00,BML Building Services Ltd,01505000,,BRREP Window/door repairs,Larkfield Leisure Centre,M15HDP20001919,
http://statistics.data.gov.uk/id/local-authority/29UP,Tonbridge & Malling Borough Council,12/14/2022,0011045320/1,11045320, 250.00,BML Building Services Ltd,01505000,,BRREP Resp - Vandal / Break-In,Tonbridge Farm Pavillion,M15HGP50001998,
http://statistics.data.gov.uk/id/local-authority/29UP,Tonbridge & Malling Borough Council,12/14/2022,0011045321/1,11045321, 624.00,BML Building Services Ltd,01505000,,BRREP General Maintenance,PC - General,M15JAP10001900,
http://statistics.data.gov.uk/id/local-authority/29UP,Tonbridge & Malling Borough Council,12/14/2022,0011045322/1,11045322, 465.00,Francis Taylor Building,01688700,,Legal Fees,Legal Sals&Overheads,D01ARDR0044002,
http://statistics.data.gov.uk/id/local-authority/29UP,Tonbridge & Malling Borough Council,12/14/2022,0011045323/1,11045323, 675.00,Eryl Davies Veterinary Surgeon,01657600,,Professional Fees,Licences - Fee Paying,H27SH000044001,
http://statistics.data.gov.uk/id/local-authority/29UP,Tonbridge & Malling Borough Council,12/14/2022,0011045324/1,11045324, 3401.28,REDACTED PERSONAL DATA,01876300,,Economic Development & Regen,Eco Dev & Reg Gen Bus Support,D52TD000047027,
http://statistics.data.gov.uk/id/local-authority/29UP,Tonbridge & Malling Borough Council,12/14/2022,0011045325/1,11045325, 1862.67,GSF SANDYLIGHT LTD,01705300,,Temporary Staff,Admin & Prop Sals&Overheads,D01AADA0511300,
http://statistics.data.gov.uk/id/local-authority/29UP,Tonbridge & Malling Borough Council,12/14/2022,0011045326/1,11045326, 30.00,Absolute Creative Print,01801100,,Economic Development & Regen,Eco Dev & Reg Gen Bus Support,D52TD000047027,
http://statistics.data.gov.uk/id/local-authority/29UP,Tonbridge & Malling Borough Council,12/14/2022,0011045326/2,11045326, 10.00,Absolute Creative Print,01801100,,Economic Development & Regen,Eco Dev & Reg Gen Bus Support,D52TD000047027,
http://statistics.data.gov.uk/id/local-authority/29UP,Tonbridge & Malling Borough Council,12/14/2022,0011045327/1,11045327, 21.15,Oasis Group  - Box-It South East,00966800,931579211,Purchases,Electoral Registration,D31MF000040101,
http://statistics.data.gov.uk/id/local-authority/29UP,Tonbridge & Malling Borough Council,12/14/2022,0011045328/1,11045328, 1217.80,Sellick Partnership Group Limited,01336800,,Temporary Staff,Legal Sals&Overheads,D01ARDR0011300,
http://statistics.data.gov.uk/id/local-authority/29UP,Tonbridge & Malling Borough Council,12/14/2022,0011045329/1,11045329, 1314.01,KCS,00054200,,Gas,Buildings,D21FEDD6021003,
http://statistics.data.gov.uk/id/local-authority/29UP,Tonbridge & Malling Borough Council,12/14/2022,0011045330/1,11045330, 3114.72,KCS,00054200,,Gas,Buildings,D21FEDD1021003,
http://statistics.data.gov.uk/id/local-authority/29UP,Tonbridge & Malling Borough Council,12/14/2022,0011045331/1,11045331, 3387.90,Royal Mail,00086200,,Purchases,Mailsort Stock Account,K37BR000001002,
http://statistics.data.gov.uk/id/local-authority/29UP,Tonbridge & Malling Borough Council,12/14/2022,0011045331/2,11045331, 14.09,Royal Mail,00086200,,Purchases,Mailsort Stock Account,K37BR000001002,
http://statistics.data.gov.uk/id/local-authority/29UP,Tonbridge & Malling Borough Council,12/14/2022,0011045331/3,11045331, 1.75,Royal Mail,00086200,,Purchases,Mailsort Stock Account,K37BR000001002,
http://statistics.data.gov.uk/id/local-authority/29UP,Tonbridge & Malling Borough Council,12/14/2022,0011045332/1,11045332, 127.68,Royal Mail,00086200,,Postages - Business Reply,Electoral Registration,D31MF000045003,
http://statistics.data.gov.uk/id/local-authority/29UP,Tonbridge & Malling Borough Council,12/14/2022,0011045332/2,11045332, 12.08,Royal Mail,00086200,,Postages - Business Reply,Electoral Registration,D31MF000045003,
http://statistics.data.gov.uk/id/local-authority/29UP,Tonbridge & Malling Borough Council,12/14/2022,0011045333/1,11045333, 56.00,Margate Charter Trustees,00563900,,Hospitality,Mayoral & Other Member Support,D29LX000048003,
http://statistics.data.gov.uk/id/local-authority/29UP,Tonbridge & Malling Borough Council,12/14/2022,0011045334/1,11045334, 344.83,Initial Washroom Hygiene,00048300,,Laundry - Roller Towels,Cleaning & Security,D21FD000042003,
http://statistics.data.gov.uk/id/local-authority/29UP,Tonbridge & Malling Borough Council,12/14/2022,0011045335/1,11045335, 1561.36,The Oyster Partnership,01196400,,Temporary Staff,Admin & Prop Sals&Overheads,D01AADA1111300,
http://statistics.data.gov.uk/id/local-authority/29UP,Tonbridge & Malling Borough Council,12/14/2022,0011045336/1,11045336, 215.52,Initial Washroom Hygiene,00048300,,Laundry - Roller Towels,Cleaning & Security,D21FD000042003,
http://statistics.data.gov.uk/id/local-authority/29UP,Tonbridge & Malling Borough Council,12/14/2022,0011045337/1,11045337, 3.25,REDACTED PERSONAL DATA,01668600,,Reference Books & Publications,Legal Sals&Overheads,D01ARDR0043010,
http://statistics.data.gov.uk/id/local-authority/29UP,Tonbridge & Malling Borough Council,12/14/2022,0012008564/1,12008564, 3887.97,Camwey Technology,01627200,,Software Hire & Support,Information Technology,D27KD000044059,410032305
http://statistics.data.gov.uk/id/local-authority/29UP,Tonbridge & Malling Borough Council,12/14/2022,0012008564/2,12008564, 650.00,Camwey Technology,01627200,,Software Hire & Support,Information Technology,D27KD000044059,410032305
http://statistics.data.gov.uk/id/local-authority/29UP,Tonbridge & Malling Borough Council,12/14/2022,0021038307/1,21038307, 113.65,Lamberhurst Engineering Ltd,01306400,,Protective Clothing,Patrolling,B22LF000042001,210057055
http://statistics.data.gov.uk/id/local-authority/29UP,Tonbridge & Malling Borough Council,12/14/2022,0021038307/2,21038307, 115.00,Lamberhurst Engineering Ltd,01306400,,Protective Clothing,Patrolling,B22LF000042001,210057055
http://statistics.data.gov.uk/id/local-authority/29UP,Tonbridge & Malling Borough Council,12/14/2022,0021038307/3,21038307, 21.95,Lamberhurst Engineering Ltd,01306400,,Protective Clothing,Patrolling,B22LF000042001,210057055
http://statistics.data.gov.uk/id/local-authority/29UP,Tonbridge & Malling Borough Council,12/14/2022,0021038308/1,21038308, 744.00,Westway Fencing and Garden Services,00159700,,Maintenance of Grounds,Open Spaces & Amenity Areas,B22LE000020402,210056823
http://statistics.data.gov.uk/id/local-authority/29UP,Tonbridge & Malling Borough Council,12/14/2022,0021038309/1,21038309, 64.09,Initial Washroom Hygiene,00048300,,Cleaning & Domestic Supplies,Haysden Country Park,B22LC000026001,
http://statistics.data.gov.uk/id/local-authority/29UP,Tonbridge & Malling Borough Council,12/14/2022,0021038310/1,21038310, 450.00,Weddle and Co,00714900,,Maintenance of Play Equipment,Open Spaces & Amenity Areas,B22LE000020503,210057068
http://statistics.data.gov.uk/id/local-authority/29UP,Tonbridge & Malling Borough Council,12/14/2022,0021038311/1,21038311, 244.23,Streetmaster (South Wales) Ltd,00222100,,Maintenance of Grounds,Sports Grounds,B13ET000020402,210056986
http://statistics.data.gov.uk/id/local-authority/29UP,Tonbridge & Malling Borough Council,12/14/2022,0021038312/1,21038312, 265.00,Rumwoods Limited,00959000,,Maintenance of Grounds,Sports Grounds,B13ET000020402,210057044
http://statistics.data.gov.uk/id/local-authority/29UP,Tonbridge & Malling Borough Council,12/14/2022,0021038313/1,21038313, 280.00,Rumwoods Limited,00959000,,Tree Planting Schemes,Countryside/Woodland Mgt,B22LH000020405,210057006
http://statistics.data.gov.uk/id/local-authority/29UP,Tonbridge & Malling Borough Council,12/14/2022,0021038314/1,21038314, 675.00,Burslem Memorials Ltd,01013400,,Maintenance of Grounds,Cemetery,B26MP000020402,210057073
http://statistics.data.gov.uk/id/local-authority/29UP,Tonbridge & Malling Borough Council,12/14/2022,0021038315/1,21038315, 199.25,Burslem Memorials Ltd,01013400,,Maintenance of Grounds,Cemetery,B26MP000020402,210056765
http://statistics.data.gov.uk/id/local-authority/29UP,Tonbridge & Malling Borough Council,12/14/2022,0021038316/1,21038316, 72.30,G.L. & R.G. Bourne,00737500,,Gates / Security,Haysden Country Park,B22LC000044017,210056722
http://statistics.data.gov.uk/id/local-authority/29UP,Tonbridge & Malling Borough Council,12/14/2022,0021038317/1,21038317, 527.40,G.L. & R.G. Bourne,00737500,,Gates / Security,Haysden Country Park,B22LC000044017,210056722
http://statistics.data.gov.uk/id/local-authority/29UP,Tonbridge & Malling Borough Council,12/14/2022,0022027271/3,22027271, 3920.70,Ward Security LTD,01490000,,Dog Warden,Street Scene,H23SD000044100,
http://statistics.data.gov.uk/id/local-authority/29UP,Tonbridge & Malling Borough Council,12/14/2022,0022027272/1,22027272, 14.05,REDACTED PERSONAL DATA,01139500,,Food Sampling,Food & Safety - Food Safety,H35SX000054011,
http://statistics.data.gov.uk/id/local-authority/29UP,Tonbridge & Malling Borough Council,12/14/2022,0022027273/1,22027273, 1194.00,Town & Country Housing Group,01385400,,Other Expenses,Housing Assistance,P03AD000009908,
http://statistics.data.gov.uk/id/local-authority/29UP,Tonbridge & Malling Borough Council,12/14/2022,0022027274/3,22027274, 115.50,British Gas,01148500,,Electricity,Homelessness,C01AA000021002,
http://statistics.data.gov.uk/id/local-authority/29UP,Tonbridge & Malling Borough Council,12/14/2022,0022027275/3,22027275, 35.55,British Gas,01148500,,Electricity,Homelessness,C01AA000021002,
http://statistics.data.gov.uk/id/local-authority/29UP,Tonbridge & Malling Borough Council,12/14/2022,0022027276/1,22027276, 3642.25,Specialist Hygiene Services,01466100,,Contract Payments,Public Conveniences,H22SC000054001,
http://statistics.data.gov.uk/id/local-authority/29UP,Tonbridge & Malling Borough Council,12/14/2022,0022027276/2,22027276, 1370.50,Specialist Hygiene Services,01466100,,Contract Payments,Public Conveniences,H22SC000054001,
http://statistics.data.gov.uk/id/local-authority/29UP,Tonbridge & Malling Borough Council,12/14/2022,0022027277/1,22027277, 123.75,Sevenoaks District Council,00089300,,Healthy Living Initiatives,Public Health - Healthy Living,H40SYVH0048145,220003220
http://statistics.data.gov.uk/id/local-authority/29UP,Tonbridge & Malling Borough Council,12/14/2022,0022027278/1,22027278, 9.65,REDACTED PERSONAL DATA,01175600,,Food Sampling,Food & Safety - Food Safety,H35SX000054011,
http://statistics.data.gov.uk/id/local-authority/29UP,Tonbridge & Malling Borough Council,12/14/2022,0022027278/2,22027278, 3.66,REDACTED PERSONAL DATA,01175600,,Food Sampling,Food & Safety - Food Safety,H35SX000054011,
http://statistics.data.gov.uk/id/local-authority/29UP,Tonbridge & Malling Borough Council,12/14/2022,0022027279/1,22027279, 5282.09,Hubbard & Houghton Construction Ltd,00970600,,Other Expenses,Disabled Facilities Grant Mand,P03AC000009908,
http://statistics.data.gov.uk/id/local-authority/29UP,Tonbridge & Malling Borough Council,12/14/2022,0022027280/1,22027280, 760.62,Town & Country Housing Group,01385400,,Other Expenses,Disabled Facilities Grant Mand,P03AC000009908,
http://statistics.data.gov.uk/id/local-authority/29UP,Tonbridge & Malling Borough Council,12/14/2022,0022027281/1,22027281, 450.00,Monitor Pest Control Ltd,01476700,,Other Expenses,Pest Control,H24SE000048010,
http://statistics.data.gov.uk/id/local-authority/29UP,Tonbridge & Malling Borough Council,12/14/2022,0022027282/1,22027282, 13936.80,Countrystyle Group,00835900,781981681,Plastic Recycling,Dry Recycling,H34SR000054019,
http://statistics.data.gov.uk/id/local-authority/29UP,Tonbridge & Malling Borough Council,12/14/2022,0022027283/1,22027283, 1676.70,Lucy and Martin Recycling LTD,01694200,,Vehicle Licences,Dry Recycling,H34SR000030105,
http://statistics.data.gov.uk/id/local-authority/29UP,Tonbridge & Malling Borough Council,12/14/2022,0022027284/1,22027284, 657.89,Scottish Water Business Stream Ltd,01641100,,Sewerage Charges,Public Conveniences,H22SCH01224003,
http://statistics.data.gov.uk/id/local-authority/29UP,Tonbridge & Malling Borough Council,12/14/2022,0022027285/1,22027285, 2700.00,Dolphin Stairlifts,00698900,,Other Expenses,Disabled Facilities Grant Mand,P03AC000009908,
http://statistics.data.gov.uk/id/local-authority/29UP,Tonbridge & Malling Borough Council,12/14/2022,0022027286/1,22027286, 446.98,Town & Country Housing Group,01385400,,Other Expenses,Disabled Facilities Grant Mand,P03AC000009908,
http://statistics.data.gov.uk/id/local-authority/29UP,Tonbridge & Malling Borough Council,12/14/2022,0022027287/1,22027287, 3104.00,Lifestyle (KENT) LTD,01348800,,Other Expenses,Disabled Facilities Grant Mand,P03AC000009908,
http://statistics.data.gov.uk/id/local-authority/29UP,Tonbridge & Malling Borough Council,12/14/2022,0022027288/1,22027288, 360.40,British Gas Services LTD,01260000,,Electricity,Homelessness,C01AAMAUN21002,
http://statistics.data.gov.uk/id/local-authority/29UP,Tonbridge & Malling Borough Council,12/14/2022,0022027289/1,22027289, 253.10,British Gas Services LTD,01260000,,Electricity,Homelessness,C01AAMAUN21002,
http://statistics.data.gov.uk/id/local-authority/29UP,Tonbridge & Malling Borough Council,12/14/2022,0022027290/1,22027290, 8617.17,Accessible Solutions LTD,01539700,,Other Expenses,Disabled Facilities Grant Mand,P03AC000009908,
http://statistics.data.gov.uk/id/local-authority/29UP,Tonbridge & Malling Borough Council,12/14/2022,0022027291/1,22027291, 1240.87,Town & Country Housing Group,01385400,,Other Expenses,Disabled Facilities Grant Mand,P03AC000009908,
http://statistics.data.gov.uk/id/local-authority/29UP,Tonbridge & Malling Borough Council,12/14/2022,0031018971/1,31018971, 1300.00,Roads & Sewers for Planning & Design Ltd,01847900,,Bridge Maintenance,Open Spaces & Amenity Areas,B22LE000020505,210056783
http://statistics.data.gov.uk/id/local-authority/29UP,Tonbridge & Malling Borough Council,12/14/2022,0031018971/2,31018971, 650.00,Roads & Sewers for Planning & Design Ltd,01847900,,Bridge Maintenance,Open Spaces & Amenity Areas,B22LE000020505,210056783
http://statistics.data.gov.uk/id/local-authority/29UP,Tonbridge & Malling Borough Council,12/14/2022,0031019095/1,31019095, 450.00,Wellden Land Surveys,01410600,,Professional Fees,Boro Drainage & Land Drainage,E20MA000044001,310042817
http://statistics.data.gov.uk/id/local-authority/29UP,Tonbridge & Malling Borough Council,12/14/2022,0031019101/1,31019101, 30.77,Kings Hill Garage Ltd,01546300,,Transport Repair & Maintenance,Parking Off-Street,E10HA000030103,310042932
http://statistics.data.gov.uk/id/local-authority/29UP,Tonbridge & Malling Borough Council,12/14/2022,0031019101/2,31019101, 46.16,Kings Hill Garage Ltd,01546300,,Transport Repair & Maintenance,Parking On-Street,E10HD000030103,310042932
http://statistics.data.gov.uk/id/local-authority/29UP,Tonbridge & Malling Borough Council,12/14/2022,0032009956/1,32009956, 692.76,The Oyster Partnership,01196400,,Temporary Staff,Planning Sals&Overheads,D01AJDJ0111300,
http://statistics.data.gov.uk/id/local-authority/29UP,Tonbridge & Malling Borough Council,12/14/2022,0032009957/1,32009957, 1348.05,The Oyster Partnership,01196400,,Temporary Staff,Planning Sals&Overheads,D01AJDJ0111300,
http://statistics.data.gov.uk/id/local-authority/29UP,Tonbridge & Malling Borough Council,12/14/2022,0032009958/1,32009958, 1403.00,The Oyster Partnership,01196400,,Temporary Staff,Planning Sals&Overheads,D01AJDJ0111300,
http://statistics.data.gov.uk/id/local-authority/29UP,Tonbridge & Malling Borough Council,12/14/2022,0032009959/1,32009959, 1886.30,The Oyster Partnership,01196400,,Temporary Staff,Planning Sals&Overheads,D01AJDJ0111300,
http://statistics.data.gov.uk/id/local-authority/29UP,Tonbridge & Malling Borough Council,12/14/2022,0032009961/1,32009961, 310.59,KM Media Group Ltd,00053900,,Advertising General,Development Management,A01ABZ99944216,320003470
http://statistics.data.gov.uk/id/local-authority/29UP,Tonbridge & Malling Borough Council,12/14/2022,0032009962/1,32009962, 7018.00,JBA Consulting,01599000,665300941,Development of Local Plan,Development of Local Plan,A01AE000044023,320003466
http://statistics.data.gov.uk/id/local-authority/29UP,Tonbridge & Malling Borough Council,12/14/2022,0032009964/3,32009964, 1147.00,G2 Recruitment Solutions,01786000,,Temporary Staff,Planning Sals&Overheads,D01AJDJ0111300,
http://statistics.data.gov.uk/id/local-authority/29UP,Tonbridge & Malling Borough Council,12/14/2022,0032009965/3,32009965, 3219.00,G2 Recruitment Solutions,01786000,,Temporary Staff,Planning Sals&Overheads,D01AJDJ0111300,
http://statistics.data.gov.uk/id/local-authority/29UP,Tonbridge & Malling Borough Council,12/14/2022,0032009966/3,32009966, 2070.36,G2 Recruitment Solutions,01786000,,Temporary Staff,Planning Sals&Overheads,D01AJDJ0111300,
http://statistics.data.gov.uk/id/local-authority/29UP,Tonbridge & Malling Borough Council,12/14/2022,0032009967/3,32009967, 2590.00,G2 Recruitment Solutions,01786000,,Temporary Staff,Planning Sals&Overheads,D01AJDJ0111300,
http://statistics.data.gov.uk/id/local-authority/29UP,Tonbridge & Malling Borough Council,12/14/2022,0032009968/1,32009968, 1250.00,Tunbridge Wells Borough Council,00844600,,Temporary Staff,Planning Sals&Overheads,D01AJDJ0111300,
http://statistics.data.gov.uk/id/local-authority/29UP,Tonbridge & Malling Borough Council,12/14/2022,0032009969/1,32009969, 1328.98,Tunbridge Wells Borough Council,00844600,,Temporary Staff,Planning Sals&Overheads,D01AJDJ0111300,
http://statistics.data.gov.uk/id/local-authority/29UP,Tonbridge & Malling Borough Council,12/14/2022,0041034989/3,41034989, 1068.29,Rundle & Co Ltd,00087200,,Bailiffs Commission,Local Revenue & NNDR Collect,D41QA000044075,
http://statistics.data.gov.uk/id/local-authority/29UP,Tonbridge & Malling Borough Council,12/14/2022,0041034989/5,41034989, 74.70,Rundle & Co Ltd,00087200,,Bailiffs Commission,Local Revenue & NNDR Collect,D41QA000044075,
http://statistics.data.gov.uk/id/local-authority/29UP,Tonbridge & Malling Borough Council,12/14/2022,0041034990/1,41034990, 325361.00,"Dep for Business, Energy & Industial Str",01793500,,Payment re Prev Yrs Cred Acc,Sundry Creditors Finance,J80TF000001101,
http://statistics.data.gov.uk/id/local-authority/29UP,Tonbridge & Malling Borough Council,12/14/2022,0051008761/1,51008761, 800.00,Centre for Governance and Scrutiny,01866900,,Ext Fees/General,Training,D10DC000013567,510010596
http://statistics.data.gov.uk/id/local-authority/29UP,Tonbridge & Malling Borough Council,12/15/2022,0041035001/1,41035001, 871.39,King & Shaxson Investments,01411100,,Professional Fees,Treasury Management,D43QT000044001,
http://statistics.data.gov.uk/id/local-authority/29UP,Tonbridge & Malling Borough Council,12/16/2022,0041035004/1,41035004, 10000.00,Citizens Advice North and West Kent ,01617600,,Charitable / Voluntary Organis,Grants & Payments to Vol Orgn,D37PACV1947005,
http://statistics.data.gov.uk/id/local-authority/29UP,Tonbridge & Malling Borough Council,12/16/2022,0041035005/1,41035005, 2000.00,Church of the Good Shepherd,01369900,,Charitable / Voluntary Organis,Grants & Payments to Vol Orgn,D37PACV1947005,
http://statistics.data.gov.uk/id/local-authority/29UP,Tonbridge & Malling Borough Council,12/16/2022,0041035006/1,41035006, 8000.00,Leybourne PC Fundraising,01834600,,Charitable / Voluntary Organis,Grants & Payments to Vol Orgn,D37PACV1947005,
http://statistics.data.gov.uk/id/local-authority/29UP,Tonbridge & Malling Borough Council,12/16/2022,0041035007/1,41035007, 4000.00,REDACTED PERSONAL DATA,01864000,,Charitable / Voluntary Organis,Grants & Payments to Vol Orgn,D37PACV1947005,
http://statistics.data.gov.uk/id/local-authority/29UP,Tonbridge & Malling Borough Council,12/16/2022,0041035008/1,41035008, 10000.00,Tonbridge Baptist Church,00401200,,Charitable / Voluntary Organis,Grants & Payments to Vol Orgn,D37PACV1947005,
http://statistics.data.gov.uk/id/local-authority/29UP,Tonbridge & Malling Borough Council,12/16/2022,0041035009/1,41035009, 4000.00,Snodland Food Assist,01830700,,Charitable / Voluntary Organis,Grants & Payments to Vol Orgn,D37PACV1947005,
http://statistics.data.gov.uk/id/local-authority/29UP,Tonbridge & Malling Borough Council,12/19/2022,0041035025/1,41035025, 59.95,Allpay Limited,01816500,,Giro / Swipe Card Charges,Local Revenue & NNDR Collect,D41QA000044083,
http://statistics.data.gov.uk/id/local-authority/29UP,Tonbridge & Malling Borough Council,12/19/2022,0041035026/1,41035026, 205.30,National Westminster Bank Plc,00069400,,Bank Charges,Banking Arrangements,D43QK000044222,
http://statistics.data.gov.uk/id/local-authority/29UP,Tonbridge & Malling Borough Council,12/19/2022,0041035028/1,41035028, 3000.00,St Peter & St Pauls Church Aylesford,01786400,,Charitable / Voluntary Organis,Grants & Payments to Vol Orgn,D37PACV1947005,
http://statistics.data.gov.uk/id/local-authority/29UP,Tonbridge & Malling Borough Council,12/19/2022,0041035032/1,41035032, 2000.00,St Johns Church - Hildenborough PC,01834400,,Charitable / Voluntary Organis,Grants & Payments to Vol Orgn,D37PACV1947005,
http://statistics.data.gov.uk/id/local-authority/29UP,Tonbridge & Malling Borough Council,12/20/2022,0041035040/1,41035040, 15.00,BNP Paribas,01360500,,Bank Charges,Banking Arrangements,D43QK000044222,
http://statistics.data.gov.uk/id/local-authority/29UP,Tonbridge & Malling Borough Council,12/21/2022,0011045345/1,11045345, 600.00,Ryan Leisure Activities Ltd,01133600,,BRREP Servicing - Squash Court,Leis Man Poult Wood Golf Centr,M15HEP20001958,110069925
http://statistics.data.gov.uk/id/local-authority/29UP,Tonbridge & Malling Borough Council,12/21/2022,0011045346/1,11045346, 110.00,NKM Fire Protection Ltd,01784600,,BRREP Servicing - FireAlarmSys,Tonbridge Swimming Pool,M15HBP20001937,110069626
http://statistics.data.gov.uk/id/local-authority/29UP,Tonbridge & Malling Borough Council,12/21/2022,0011045347/1,11045347, 640.00,GI Carpets Ltd,00953500,,BRREP Carpet / Floors - Public,Angel Centre,M15HAP20001926,110069900
http://statistics.data.gov.uk/id/local-authority/29UP,Tonbridge & Malling Borough Council,12/21/2022,0011045348/1,11045348, 1128.00,Chillmech Limited,00978700,,BRREP Servicing-Air Condition,Angel Centre,M15HAP20001935,110069500
http://statistics.data.gov.uk/id/local-authority/29UP,Tonbridge & Malling Borough Council,12/21/2022,0011045349/1,11045349, 450.00,Chillmech Limited,00978700,,BRREP Servicing-Air Condition,Tonbridge Swimming Pool,M15HBP20001935,110069500
http://statistics.data.gov.uk/id/local-authority/29UP,Tonbridge & Malling Borough Council,12/21/2022,0011045350/1,11045350, 1695.00,Chillmech Limited,00978700,,BRREP Servicing-Air Condition,Angel Centre,M15HAP20001935,110069500
http://statistics.data.gov.uk/id/local-authority/29UP,Tonbridge & Malling Borough Council,12/21/2022,0011045351/1,11045351, 175.00,Topline  Electronics Ltd Pools and Welln,01864600,,BRREP Servicing - pool plant,Tonbridge Swimming Pool,M15HBP20001910,110069798
http://statistics.data.gov.uk/id/local-authority/29UP,Tonbridge & Malling Borough Council,12/21/2022,0011045352/1,11045352, 420.00,Monitor Pest Control Ltd,01476700,,BRREP Rodent Control,Gibson Building West,M15KBP20001949,110069924
http://statistics.data.gov.uk/id/local-authority/29UP,Tonbridge & Malling Borough Council,12/21/2022,0011045353/1,11045353, 120.00,G C Industrial Heating Services,00578100,,BRREP Response - General,Tonbridge Castle / CAB,M15KFP50001997,110069934
http://statistics.data.gov.uk/id/local-authority/29UP,Tonbridge & Malling Borough Council,12/21/2022,0011045354/1,11045354, 360.00,G C Industrial Heating Services,00578100,,BRREP Servicing - boilers,Larkfield Leisure Centre,M15HDP20001929,110069933
http://statistics.data.gov.uk/id/local-authority/29UP,Tonbridge & Malling Borough Council,12/21/2022,0011045355/1,11045355, 310.00,G C Industrial Heating Services,00578100,,BRREP Response - General,Shops & Maisonettes,M15NAP50001997,110069907
http://statistics.data.gov.uk/id/local-authority/29UP,Tonbridge & Malling Borough Council,12/21/2022,0011045356/1,11045356, 195.00,Absolute Creative Print,01801100,,Economic Development Expenses,Eco Dev & Reg Gen Bus Support,D52TD000048050,110069806
http://statistics.data.gov.uk/id/local-authority/29UP,Tonbridge & Malling Borough Council,12/21/2022,0011045357/3,11045357, 391.51,KH Recruitment Ltd,01738900,,Salaries & On Costs,Licences - Fee Paying,H27SH000015100,
http://statistics.data.gov.uk/id/local-authority/29UP,Tonbridge & Malling Borough Council,12/21/2022,0011045358/1,11045358, 362.50,Eryl Davies Veterinary Surgeon,01657600,,Professional Fees,Licences - Fee Paying,H27SH000044001,
http://statistics.data.gov.uk/id/local-authority/29UP,Tonbridge & Malling Borough Council,12/21/2022,0011045359/3,11045359, 199.00,Association of Electoral Administrators,01652500,,Purchases,Conduct of Elections,D31MG000040101,
http://statistics.data.gov.uk/id/local-authority/29UP,Tonbridge & Malling Borough Council,12/21/2022,0011045360/3,11045360, 573.75,Ch&i associates,01628900,,Legal Fees,Legal Sals&Overheads,D01ARDR0044002,
http://statistics.data.gov.uk/id/local-authority/29UP,Tonbridge & Malling Borough Council,12/21/2022,0011045361/3,11045361, 104.00,Chubb Fire & Security Ltd,00115400,174605362,BRREP Servicing-IntruderAlarm,Larkfield Leisure Centre,M15HDP20001939,
http://statistics.data.gov.uk/id/local-authority/29UP,Tonbridge & Malling Borough Council,12/21/2022,0011045363/1,11045363, 350.00,BML Building Services Ltd,01505000,,BRREP Response - General,Ton Sportsgrnd Bldgs / Toilets,M15HCP50001997,
http://statistics.data.gov.uk/id/local-authority/29UP,Tonbridge & Malling Borough Council,12/21/2022,0011045365/1,11045365, 504.60,Canon (UK) Limited,00298700,,Purchases - Paper,Printing,D22GA000040102,
http://statistics.data.gov.uk/id/local-authority/29UP,Tonbridge & Malling Borough Council,12/21/2022,0011045366/1,11045366, 7472.51,KCS,00054200,,Electricity,Buildings,D21FEDD1021002,
http://statistics.data.gov.uk/id/local-authority/29UP,Tonbridge & Malling Borough Council,12/21/2022,0011045369/1,11045369, 4473.79,KCS,00054200,,Electricity,Buildings,D21FEDD5021002,
http://statistics.data.gov.uk/id/local-authority/29UP,Tonbridge & Malling Borough Council,12/21/2022,0011045370/1,11045370, 295.55,KCS,00054200,,Estate Management Charge,Land Review,D40PS000020400,
http://statistics.data.gov.uk/id/local-authority/29UP,Tonbridge & Malling Borough Council,12/21/2022,0011045371/3,11045371, 1157.56,The Oyster Partnership,01196400,,Temporary Staff,Admin & Prop Sals&Overheads,D01AADA1111300,
http://statistics.data.gov.uk/id/local-authority/29UP,Tonbridge & Malling Borough Council,12/21/2022,0011045372/3,11045372, 180.00,G C Industrial Heating Services,00578100,,BRREP Servicing - Heating Syst,Leis Man Poult Wood Golf Centr,M15HEP20001934,
http://statistics.data.gov.uk/id/local-authority/29UP,Tonbridge & Malling Borough Council,12/21/2022,0011045373/3,11045373, 5662.61,KCS,00054200,,Gas,Buildings,D21FEDD1021003,
http://statistics.data.gov.uk/id/local-authority/29UP,Tonbridge & Malling Borough Council,12/21/2022,0011045374/3,11045374, 1655.21,KCS,00054200,,Electricity,Buildings,D21FEDD6021002,
http://statistics.data.gov.uk/id/local-authority/29UP,Tonbridge & Malling Borough Council,12/21/2022,0011045375/3,11045375, 150.00,BML Building Services Ltd,01505000,,BRREP General Maintenance,Land Review,M15MAP49901900,
http://statistics.data.gov.uk/id/local-authority/29UP,Tonbridge & Malling Borough Council,12/21/2022,0011045376/3,11045376, 350.00,BML Building Services Ltd,01505000,,BRREP Response - General,Larkfield Leisure Centre,M15HDP50001997,
http://statistics.data.gov.uk/id/local-authority/29UP,Tonbridge & Malling Borough Council,12/21/2022,0011045378/1,11045378, 951.17,REDACTED PERSONAL DATA,01876300,,Economic Development & Regen,Eco Dev & Reg Gen Bus Support,D52TD000047027,
http://statistics.data.gov.uk/id/local-authority/29UP,Tonbridge & Malling Borough Council,12/21/2022,0011045379/1,11045379, 1217.80,Sellick Partnership Group Limited,01336800,,Temporary Staff,Legal Sals&Overheads,D01ARDR0011300,
http://statistics.data.gov.uk/id/local-authority/29UP,Tonbridge & Malling Borough Council,12/21/2022,0011045380/1,11045380, 4374.88,KCS,00054200,,Electricity,Buildings,D21FEDD6021002,
http://statistics.data.gov.uk/id/local-authority/29UP,Tonbridge & Malling Borough Council,12/21/2022,0012008565/3,12008565, 556.60,Morgan Hunt UK Ltd,01086900,,Temporary Staff,Finance Sals&Overheads,D01AFDF1111300,
http://statistics.data.gov.uk/id/local-authority/29UP,Tonbridge & Malling Borough Council,12/21/2022,0012008566/10,12008566, 3.00,O2 UK Ltd,01268000,,Mobile Telephones,Technical Sals&Overheads,D01AEDE0045013,
http://statistics.data.gov.uk/id/local-authority/29UP,Tonbridge & Malling Borough Council,12/21/2022,0012008566/11,12008566, 6.00,O2 UK Ltd,01268000,,Mobile Telephones,Technical Sals&Overheads,D01AEDE0145013,
http://statistics.data.gov.uk/id/local-authority/29UP,Tonbridge & Malling Borough Council,12/21/2022,0012008566/12,12008566, 9.20,O2 UK Ltd,01268000,,Mobile Telephones,Technical Sals&Overheads,D01AEDE0245013,
http://statistics.data.gov.uk/id/local-authority/29UP,Tonbridge & Malling Borough Council,12/21/2022,0012008566/13,12008566, 42.69,O2 UK Ltd,01268000,,Mobile Telephones,Technical Sals&Overheads,D01AEDE0445013,
http://statistics.data.gov.uk/id/local-authority/29UP,Tonbridge & Malling Borough Council,12/21/2022,0012008566/14,12008566, 3.00,O2 UK Ltd,01268000,,Mobile Telephones,Technical Sals&Overheads,D01AEDE0545013,
http://statistics.data.gov.uk/id/local-authority/29UP,Tonbridge & Malling Borough Council,12/21/2022,0012008566/15,12008566, 12.00,O2 UK Ltd,01268000,,Mobile Telephones,Finance Sals&Overheads,D01AFDF0045013,
http://statistics.data.gov.uk/id/local-authority/29UP,Tonbridge & Malling Borough Council,12/21/2022,0012008566/16,12008566, 6.00,O2 UK Ltd,01268000,,Mobile Telephones,Finance Sals&Overheads,D01AFDF0945013,
http://statistics.data.gov.uk/id/local-authority/29UP,Tonbridge & Malling Borough Council,12/21/2022,0012008566/17,12008566, 12.00,O2 UK Ltd,01268000,,Mobile Telephones,St Scene & Leis Sals&Overheads,D01AGDG0045013,
http://statistics.data.gov.uk/id/local-authority/29UP,Tonbridge & Malling Borough Council,12/21/2022,0012008566/18,12008566, 12.00,O2 UK Ltd,01268000,,Mobile Telephones,St Scene & Leis Sals&Overheads,D01AGDG0145013,
http://statistics.data.gov.uk/id/local-authority/29UP,Tonbridge & Malling Borough Council,12/21/2022,0012008566/19,12008566, 9.00,O2 UK Ltd,01268000,,Mobile Telephones,St Scene & Leis Sals&Overheads,D01AGDG0445013,
http://statistics.data.gov.uk/id/local-authority/29UP,Tonbridge & Malling Borough Council,12/21/2022,0012008566/20,12008566, 36.24,O2 UK Ltd,01268000,,Mobile Telephones,St Scene & Leis Sals&Overheads,D01AGDG2045013,
http://statistics.data.gov.uk/id/local-authority/29UP,Tonbridge & Malling Borough Council,12/21/2022,0012008566/21,12008566, 9.00,O2 UK Ltd,01268000,,Mobile Telephones,Planning Sals&Overheads,D01AJDJ0045013,
http://statistics.data.gov.uk/id/local-authority/29UP,Tonbridge & Malling Borough Council,12/21/2022,0012008566/22,12008566, 12.00,O2 UK Ltd,01268000,,Mobile Telephones,Planning Sals&Overheads,D01AJDJ0245013,
http://statistics.data.gov.uk/id/local-authority/29UP,Tonbridge & Malling Borough Council,12/21/2022,0012008566/23,12008566, 6.00,O2 UK Ltd,01268000,,Mobile Telephones,Legal Sals&Overheads,D01ARDR0045013,
http://statistics.data.gov.uk/id/local-authority/29UP,Tonbridge & Malling Borough Council,12/21/2022,0012008566/24,12008566, 12.00,O2 UK Ltd,01268000,,Mobile Telephones,Legal Sals&Overheads,D01ARDR0445013,
http://statistics.data.gov.uk/id/local-authority/29UP,Tonbridge & Malling Borough Council,12/21/2022,0012008566/25,12008566, 3.00,O2 UK Ltd,01268000,,Mobile Telephones,Legal Sals&Overheads,D01ARDR0745013,
http://statistics.data.gov.uk/id/local-authority/29UP,Tonbridge & Malling Borough Council,12/21/2022,0012008566/26,12008566, 3.00,O2 UK Ltd,01268000,,Mobile Telephones,Env Hlth & Hsg Sals&Overheads,D01AVDV0045013,
http://statistics.data.gov.uk/id/local-authority/29UP,Tonbridge & Malling Borough Council,12/21/2022,0012008566/27,12008566, 9.00,O2 UK Ltd,01268000,,Mobile Telephones,Env Hlth & Hsg Sals&Overheads,D01AVDV0145013,
http://statistics.data.gov.uk/id/local-authority/29UP,Tonbridge & Malling Borough Council,12/21/2022,0012008566/28,12008566, 6.00,O2 UK Ltd,01268000,,Mobile Telephones,Env Hlth & Hsg Sals&Overheads,D01AVDV0345013,
http://statistics.data.gov.uk/id/local-authority/29UP,Tonbridge & Malling Borough Council,12/21/2022,0012008566/29,12008566, 3.00,O2 UK Ltd,01268000,,Mobile Telephones,Env Hlth & Hsg Sals&Overheads,D01AVDV0745013,
http://statistics.data.gov.uk/id/local-authority/29UP,Tonbridge & Malling Borough Council,12/21/2022,0012008566/3,12008566, 3.00,O2 UK Ltd,01268000,,Telephones - General,Open Spaces & Amenity Areas,B22LE000045010,
http://statistics.data.gov.uk/id/local-authority/29UP,Tonbridge & Malling Borough Council,12/21/2022,0012008566/30,12008566, 6.00,O2 UK Ltd,01268000,,Mobile Telephones,Env Hlth & Hsg Sals&Overheads,D01AVDV0945013,
http://statistics.data.gov.uk/id/local-authority/29UP,Tonbridge & Malling Borough Council,12/21/2022,0012008566/31,12008566, 9.00,O2 UK Ltd,01268000,,Mobile Telephones,Customer Services,D23CS000045013,
http://statistics.data.gov.uk/id/local-authority/29UP,Tonbridge & Malling Borough Council,12/21/2022,0012008566/32,12008566, 3.00,O2 UK Ltd,01268000,,Mobile Telephones,Tonbridge Gateway,D23TG000045013,
http://statistics.data.gov.uk/id/local-authority/29UP,Tonbridge & Malling Borough Council,12/21/2022,0012008566/33,12008566, 627.00,O2 UK Ltd,01268000,,Leased Lines & Modems,Information Technology,D27KD000045011,
http://statistics.data.gov.uk/id/local-authority/29UP,Tonbridge & Malling Borough Council,12/21/2022,0012008566/34,12008566, 3.00,O2 UK Ltd,01268000,,Mobile Telephones,Mayoral & Other Member Support,D29LX000045013,
http://statistics.data.gov.uk/id/local-authority/29UP,Tonbridge & Malling Borough Council,12/21/2022,0012008566/35,12008566, 3.00,O2 UK Ltd,01268000,,Emergency Out of Hours Recharg,Refuse Collection,H20SA000045030,
http://statistics.data.gov.uk/id/local-authority/29UP,Tonbridge & Malling Borough Council,12/21/2022,0012008566/36,12008566, 3.00,O2 UK Ltd,01268000,,Emergency Out of Hours Recharg,Street Scene,H23SD000045030,
http://statistics.data.gov.uk/id/local-authority/29UP,Tonbridge & Malling Borough Council,12/21/2022,0012008566/4,12008566, 6.00,O2 UK Ltd,01268000,,Mobile Telephones,Admin & Prop Sals&Overheads,D01AADA0045013,
http://statistics.data.gov.uk/id/local-authority/29UP,Tonbridge & Malling Borough Council,12/21/2022,0012008566/5,12008566, 3.00,O2 UK Ltd,01268000,,Mobile Telephones,Admin & Prop Sals&Overheads,D01AADA1045013,
http://statistics.data.gov.uk/id/local-authority/29UP,Tonbridge & Malling Borough Council,12/21/2022,0012008566/6,12008566, 9.00,O2 UK Ltd,01268000,,Mobile Telephones,Admin & Prop Sals&Overheads,D01AADA1245013,
http://statistics.data.gov.uk/id/local-authority/29UP,Tonbridge & Malling Borough Council,12/21/2022,0012008566/7,12008566, 3.00,O2 UK Ltd,01268000,,Mobile Telephones,Chief Exec Sals&Overheads,D01ACDC0045013,
http://statistics.data.gov.uk/id/local-authority/29UP,Tonbridge & Malling Borough Council,12/21/2022,0012008566/8,12008566, 3.00,O2 UK Ltd,01268000,,Mobile Telephones,Chief Exec Sals&Overheads,D01ACDC0145013,
http://statistics.data.gov.uk/id/local-authority/29UP,Tonbridge & Malling Borough Council,12/21/2022,0012008566/9,12008566, 3.00,O2 UK Ltd,01268000,,Mobile Telephones,Chief Exec Sals&Overheads,D01ACDC0245013,
http://statistics.data.gov.uk/id/local-authority/29UP,Tonbridge & Malling Borough Council,12/21/2022,0021038318/1,21038318, 29731.69,Wicksteed Leisure Limited,00167900,,Contract Payments,Tonbridge Farm Sportsground Si,P05DF000009904,210056944
http://statistics.data.gov.uk/id/local-authority/29UP,Tonbridge & Malling Borough Council,12/21/2022,0021038319/1,21038319, 290.00,Gymnova ,01666800,,Initial Furniture & Equipment,Capital Renewals Leisure,P05KGBC0109906,210057011
http://statistics.data.gov.uk/id/local-authority/29UP,Tonbridge & Malling Borough Council,12/21/2022,0021038319/2,21038319, 128.00,Gymnova ,01666800,,Initial Furniture & Equipment,Capital Renewals Leisure,P05KGBC0109906,210057011
http://statistics.data.gov.uk/id/local-authority/29UP,Tonbridge & Malling Borough Council,12/21/2022,0021038320/1,21038320, 1177.60,Martin Square Traders Association,00904000,,Borough Christmas Lighting,Eco Dev & Reg Boro Chris Light,D52TE000047014,
http://statistics.data.gov.uk/id/local-authority/29UP,Tonbridge & Malling Borough Council,12/21/2022,0021038321/3,21038321, 2037.65,KCC - L.A.S.E.R Commercial Services ,00184300,,Electricity,Haysden Country Park,B22LC000021002,
http://statistics.data.gov.uk/id/local-authority/29UP,Tonbridge & Malling Borough Council,12/21/2022,0021038322/3,21038322, 372.57,KCC - L.A.S.E.R Commercial Services ,00184300,,Electricity,Tonbridge Castle Grounds,B22LB000021002,
http://statistics.data.gov.uk/id/local-authority/29UP,Tonbridge & Malling Borough Council,12/21/2022,0021038323/3,21038323, 392.96,KCC - L.A.S.E.R Commercial Services ,00184300,,Electricity,Cemetery,B26MP000021002,
http://statistics.data.gov.uk/id/local-authority/29UP,Tonbridge & Malling Borough Council,12/21/2022,0021038324/3,21038324, 87.56,KCC - L.A.S.E.R Commercial Services ,00184300,,Electricity,Cemetery,B26MP000021002,
http://statistics.data.gov.uk/id/local-authority/29UP,Tonbridge & Malling Borough Council,12/21/2022,0021038325/1,21038325, 685.66,Atlas Facilities Managment Limited ,01075900,,Gates / Security,Patrolling,B22LF000044017,210056716
http://statistics.data.gov.uk/id/local-authority/29UP,Tonbridge & Malling Borough Council,12/21/2022,0021038326/1,21038326, 882.50,Health & Care,01797400,226381611,Initial Furniture & Equipment,Capital Renewals Leisure,P05KGBC0209906,210057013
http://statistics.data.gov.uk/id/local-authority/29UP,Tonbridge & Malling Borough Council,12/21/2022,0021038328/1,21038328, 1384.50,Landscape Services Ltd,00057600,,Grounds Maintenance Contract,Cemetery,B26MP000050103,
http://statistics.data.gov.uk/id/local-authority/29UP,Tonbridge & Malling Borough Council,12/21/2022,0022027293/1,22027293, 117.83,Maidstone Borough Council,01173700,,Council Tax,Homelessness,C01AA000023002,
http://statistics.data.gov.uk/id/local-authority/29UP,Tonbridge & Malling Borough Council,12/21/2022,0022027294/1,22027294, 12.71,Maidstone Borough Council,01173700,,Council Tax,Homelessness,C01AA000023002,
http://statistics.data.gov.uk/id/local-authority/29UP,Tonbridge & Malling Borough Council,12/21/2022,0022027296/1,22027296, 1164.00,REDACTED PERSONAL DATA,01878000,,Other Expenses,Housing Assistance,P03AD000009908,
http://statistics.data.gov.uk/id/local-authority/29UP,Tonbridge & Malling Borough Council,12/21/2022,0022027297/3,22027297, 8154.12,Urbaser LTD,01718800,,Contract Payments,Refuse Collection,H20SA000054001,
http://statistics.data.gov.uk/id/local-authority/29UP,Tonbridge & Malling Borough Council,12/21/2022,0022027297/4,22027297, 1663.22,Urbaser LTD,01718800,,Contract Payments,Street Scene,H23SD000054001,
http://statistics.data.gov.uk/id/local-authority/29UP,Tonbridge & Malling Borough Council,12/21/2022,0022027297/6,22027297, 5.26,Urbaser LTD,01718800,,Contract Payments,Food Recycling,H34SS000054001,
http://statistics.data.gov.uk/id/local-authority/29UP,Tonbridge & Malling Borough Council,12/21/2022,0022027297/7,22027297, 13017.19,Urbaser LTD,01718800,,Contract Payments,Garden Waste Recycling,H34ST000054001,
http://statistics.data.gov.uk/id/local-authority/29UP,Tonbridge & Malling Borough Council,12/21/2022,0022027298/10,22027298, 22.08,Urbaser LTD,01718800,,Contract Payments,Food Recycling,H34SS000054001,
http://statistics.data.gov.uk/id/local-authority/29UP,Tonbridge & Malling Borough Council,12/21/2022,0022027298/11,22027298, 13169.23,Urbaser LTD,01718800,,Contract Payments,Garden Waste Recycling,H34ST000054001,
http://statistics.data.gov.uk/id/local-authority/29UP,Tonbridge & Malling Borough Council,12/21/2022,0022027298/7,22027298, 24606.48,Urbaser LTD,01718800,,Contract Payments,Refuse Collection,H20SA000054001,
http://statistics.data.gov.uk/id/local-authority/29UP,Tonbridge & Malling Borough Council,12/21/2022,0022027298/8,22027298, 14915.92,Urbaser LTD,01718800,,Contract Payments,Street Scene,H23SD000054001,
http://statistics.data.gov.uk/id/local-authority/29UP,Tonbridge & Malling Borough Council,12/21/2022,0022027299/3,22027299, 22944.03,Urbaser LTD,01718800,,Contract Payments,Refuse Collection,H20SA000054001,
http://statistics.data.gov.uk/id/local-authority/29UP,Tonbridge & Malling Borough Council,12/21/2022,0022027299/4,22027299, 14458.59,Urbaser LTD,01718800,,Contract Payments,Street Scene,H23SD000054001,
http://statistics.data.gov.uk/id/local-authority/29UP,Tonbridge & Malling Borough Council,12/21/2022,0022027299/5,22027299, 88.16,Urbaser LTD,01718800,,Contract Payments,Dry Recycling,H34SR000054001,
http://statistics.data.gov.uk/id/local-authority/29UP,Tonbridge & Malling Borough Council,12/21/2022,0022027299/6,22027299, 33.12,Urbaser LTD,01718800,,Contract Payments,Food Recycling,H34SS000054001,
http://statistics.data.gov.uk/id/local-authority/29UP,Tonbridge & Malling Borough Council,12/21/2022,0022027299/7,22027299, 13448.87,Urbaser LTD,01718800,,Contract Payments,Garden Waste Recycling,H34ST000054001,
http://statistics.data.gov.uk/id/local-authority/29UP,Tonbridge & Malling Borough Council,12/21/2022,0022027300/3,22027300, 735.00,Countrystyle Group,00835900,781981681,Collection of Card,Dry Recycling,H34SR000054008,
http://statistics.data.gov.uk/id/local-authority/29UP,Tonbridge & Malling Borough Council,12/21/2022,0022027301/3,22027301, 87.65,South East Water Ltd,01330300,,Water Sampling,Environmental Protection,H32SN000054010,
http://statistics.data.gov.uk/id/local-authority/29UP,Tonbridge & Malling Borough Council,12/21/2022,0022027302/1,22027302, 247.50,Sevenoaks District Council,00089300,,Healthy Living Initiatives,Public Health - Healthy Living,H40SYVH0048145,220003220
http://statistics.data.gov.uk/id/local-authority/29UP,Tonbridge & Malling Borough Council,12/21/2022,0022027303/1,22027303, 2067.12,Enviro Technology Services PLC,01461300,,Maintenance - General,Environmental Protection,H32SN000040135,220003292
http://statistics.data.gov.uk/id/local-authority/29UP,Tonbridge & Malling Borough Council,12/21/2022,0022027304/1,22027304, 107.75,Enviro Technology Services PLC,01461300,,Air Quality Monitoring,Environmental Protection,H32SN000054016,220003289
http://statistics.data.gov.uk/id/local-authority/29UP,Tonbridge & Malling Borough Council,12/21/2022,0022027305/1,22027305, 1000.00,Counterweight LTD,01506600,,Healthy Living Initiatives,Public Health - Healthy Living,H40SYVH0048145,220003291
http://statistics.data.gov.uk/id/local-authority/29UP,Tonbridge & Malling Borough Council,12/21/2022,0022027306/1,22027306, 150.00,WRM Property Services,01878100,,Homelessness Reduction Initiat,Homelessness,C01AA000048019,
http://statistics.data.gov.uk/id/local-authority/29UP,Tonbridge & Malling Borough Council,12/21/2022,0022027307/1,22027307, 23565.88,Urbaser LTD,01718800,,Contract Payments,Refuse Collection,H20SA000054001,
http://statistics.data.gov.uk/id/local-authority/29UP,Tonbridge & Malling Borough Council,12/21/2022,0022027307/2,22027307, 15079.77,Urbaser LTD,01718800,,Contract Payments,Street Scene,H23SD000054001,
http://statistics.data.gov.uk/id/local-authority/29UP,Tonbridge & Malling Borough Council,12/21/2022,0022027307/3,22027307, 88.60,Urbaser LTD,01718800,,Contract Payments,Dry Recycling,H34SR000054001,
http://statistics.data.gov.uk/id/local-authority/29UP,Tonbridge & Malling Borough Council,12/21/2022,0022027307/4,22027307, 37.33,Urbaser LTD,01718800,,Contract Payments,Food Recycling,H34SS000054001,
http://statistics.data.gov.uk/id/local-authority/29UP,Tonbridge & Malling Borough Council,12/21/2022,0022027307/5,22027307, 13627.59,Urbaser LTD,01718800,,Contract Payments,Garden Waste Recycling,H34ST000054001,
http://statistics.data.gov.uk/id/local-authority/29UP,Tonbridge & Malling Borough Council,12/21/2022,0022027308/1,22027308, 23486.73,Urbaser LTD,01718800,,Contract Payments,Refuse Collection,H20SA000054001,
http://statistics.data.gov.uk/id/local-authority/29UP,Tonbridge & Malling Borough Council,12/21/2022,0022027308/2,22027308, 15729.43,Urbaser LTD,01718800,,Contract Payments,Street Scene,H23SD000054001,
http://statistics.data.gov.uk/id/local-authority/29UP,Tonbridge & Malling Borough Council,12/21/2022,0022027308/3,22027308, 89.33,Urbaser LTD,01718800,,Contract Payments,Dry Recycling,H34SR000054001,
http://statistics.data.gov.uk/id/local-authority/29UP,Tonbridge & Malling Borough Council,12/21/2022,0022027308/4,22027308, 52.04,Urbaser LTD,01718800,,Contract Payments,Food Recycling,H34SS000054001,
http://statistics.data.gov.uk/id/local-authority/29UP,Tonbridge & Malling Borough Council,12/21/2022,0022027308/5,22027308, 13764.43,Urbaser LTD,01718800,,Contract Payments,Garden Waste Recycling,H34ST000054001,
http://statistics.data.gov.uk/id/local-authority/29UP,Tonbridge & Malling Borough Council,12/21/2022,0022027309/1,22027309, 22663.93,Urbaser LTD,01718800,,Contract Payments,Refuse Collection,H20SA000054001,
http://statistics.data.gov.uk/id/local-authority/29UP,Tonbridge & Malling Borough Council,12/21/2022,0022027309/2,22027309, 14187.30,Urbaser LTD,01718800,,Contract Payments,Street Scene,H23SD000054001,
http://statistics.data.gov.uk/id/local-authority/29UP,Tonbridge & Malling Borough Council,12/21/2022,0022027309/3,22027309, 155.23,Urbaser LTD,01718800,,Contract Payments,Dry Recycling,H34SR000054001,
http://statistics.data.gov.uk/id/local-authority/29UP,Tonbridge & Malling Borough Council,12/21/2022,0022027309/4,22027309, 67.29,Urbaser LTD,01718800,,Contract Payments,Food Recycling,H34SS000054001,
http://statistics.data.gov.uk/id/local-authority/29UP,Tonbridge & Malling Borough Council,12/21/2022,0022027309/5,22027309, 13797.11,Urbaser LTD,01718800,,Contract Payments,Garden Waste Recycling,H34ST000054001,
http://statistics.data.gov.uk/id/local-authority/29UP,Tonbridge & Malling Borough Council,12/21/2022,0022027310/1,22027310, 22870.88,Urbaser LTD,01718800,,Contract Payments,Refuse Collection,H20SA000054001,
http://statistics.data.gov.uk/id/local-authority/29UP,Tonbridge & Malling Borough Council,12/21/2022,0022027310/2,22027310, 14454.45,Urbaser LTD,01718800,,Contract Payments,Street Scene,H23SD000054001,
http://statistics.data.gov.uk/id/local-authority/29UP,Tonbridge & Malling Borough Council,12/21/2022,0022027310/3,22027310, 290.67,Urbaser LTD,01718800,,Contract Payments,Dry Recycling,H34SR000054001,
http://statistics.data.gov.uk/id/local-authority/29UP,Tonbridge & Malling Borough Council,12/21/2022,0022027310/4,22027310, 85.69,Urbaser LTD,01718800,,Contract Payments,Food Recycling,H34SS000054001,
http://statistics.data.gov.uk/id/local-authority/29UP,Tonbridge & Malling Borough Council,12/21/2022,0022027310/5,22027310, 13897.86,Urbaser LTD,01718800,,Contract Payments,Garden Waste Recycling,H34ST000054001,
http://statistics.data.gov.uk/id/local-authority/29UP,Tonbridge & Malling Borough Council,12/21/2022,0022027311/1,22027311, 1164.00,REDACTED PERSONAL DATA,01878000,,Other Expenses,Housing Assistance,P03AD000009908,
http://statistics.data.gov.uk/id/local-authority/29UP,Tonbridge & Malling Borough Council,12/21/2022,0031019106/3,31019106, 20.83,Kings Hill Garage Ltd,01546300,,Transport Repair & Maintenance,Parking Off-Street,E10HA000030103,
http://statistics.data.gov.uk/id/local-authority/29UP,Tonbridge & Malling Borough Council,12/21/2022,0031019106/4,31019106, 20.84,Kings Hill Garage Ltd,01546300,,Transport Repair & Maintenance,Parking On-Street,E10HD000030103,
http://statistics.data.gov.uk/id/local-authority/29UP,Tonbridge & Malling Borough Council,12/21/2022,0031019107/1,31019107, 400.00,Arnold & Court Ltd,01411300,,Contract Payments,Boro Drainage & Land Drainage,E20MA000054001,320003461
http://statistics.data.gov.uk/id/local-authority/29UP,Tonbridge & Malling Borough Council,12/21/2022,0031019108/1,31019108, 500.00,Arnold & Court Ltd,01411300,,Premises Repairs & Maintenance,Parking Off-Street,E10HAE00120601,310042908
http://statistics.data.gov.uk/id/local-authority/29UP,Tonbridge & Malling Borough Council,12/21/2022,0031019109/1,31019109, 800.00,Arnold & Court Ltd,01411300,,Premises Repairs & Maintenance,Parking Off-Street,E10HA000020601,310042910
http://statistics.data.gov.uk/id/local-authority/29UP,Tonbridge & Malling Borough Council,12/21/2022,0031019110/1,31019110, 120.00,Arnold & Court Ltd,01411300,,Maintenance of Grounds,Sports Grounds,B13ETCARP20402,310042906
http://statistics.data.gov.uk/id/local-authority/29UP,Tonbridge & Malling Borough Council,12/21/2022,0031019110/2,31019110, 120.00,Arnold & Court Ltd,01411300,,Maintenance of Grounds,Haysden Country Park,B22LCCARP20402,310042906
http://statistics.data.gov.uk/id/local-authority/29UP,Tonbridge & Malling Borough Council,12/21/2022,0031019110/3,31019110, 120.00,Arnold & Court Ltd,01411300,,Premises Repairs & Maintenance,Parking Off-Street,E10HA000020601,310042906
http://statistics.data.gov.uk/id/local-authority/29UP,Tonbridge & Malling Borough Council,12/21/2022,0031019110/4,31019110, 720.00,Arnold & Court Ltd,01411300,,Premises Repairs & Maintenance,Parking Off-Street,E10HA000020601,310042906
http://statistics.data.gov.uk/id/local-authority/29UP,Tonbridge & Malling Borough Council,12/21/2022,0031019110/5,31019110, 240.00,Arnold & Court Ltd,01411300,,Premises Repairs & Maintenance,Parking On-Street,E10HD000020601,310042906
http://statistics.data.gov.uk/id/local-authority/29UP,Tonbridge & Malling Borough Council,12/21/2022,0031019111/1,31019111, 200.00,Arnold & Court Ltd,01411300,,Sandbags,Civil Contingencies,D33NA000040128,310042921
http://statistics.data.gov.uk/id/local-authority/29UP,Tonbridge & Malling Borough Council,12/21/2022,0031019111/2,31019111, 200.00,Arnold & Court Ltd,01411300,,Premises Repairs & Maintenance,Parking Off-Street,E10HA000020601,310042921
http://statistics.data.gov.uk/id/local-authority/29UP,Tonbridge & Malling Borough Council,12/21/2022,0031019112/1,31019112, 556.50,Arnold & Court Ltd,01411300,,Premises Repairs & Maintenance,Parking Off-Street,E10HA000020601,310042916
http://statistics.data.gov.uk/id/local-authority/29UP,Tonbridge & Malling Borough Council,12/21/2022,0031019113/1,31019113, 200.00,Arnold & Court Ltd,01411300,,Premises Repairs & Maintenance,Parking On-Street,E10HD000020601,310042925
http://statistics.data.gov.uk/id/local-authority/29UP,Tonbridge & Malling Borough Council,12/21/2022,0031019114/1,31019114, 260.00,Arnold & Court Ltd,01411300,,Premises Repairs & Maintenance,Parking Off-Street,E10HA000020601,210057045
http://statistics.data.gov.uk/id/local-authority/29UP,Tonbridge & Malling Borough Council,12/21/2022,0031019115/1,31019115, 90.00,Arnold & Court Ltd,01411300,,Repair & Mtce of Fixed Plant,Boro Highways & Emergency Oper,E01AA000020501,310042924
http://statistics.data.gov.uk/id/local-authority/29UP,Tonbridge & Malling Borough Council,12/21/2022,0031019115/2,31019115, 800.00,Arnold & Court Ltd,01411300,,Repair & Mtce of Fixed Plant,Boro Highways & Emergency Oper,E01AA000020501,310042924
http://statistics.data.gov.uk/id/local-authority/29UP,Tonbridge & Malling Borough Council,12/21/2022,0031019116/1,31019116, 435.00,Arnold & Court Ltd,01411300,,Repair & Mtce of Fixed Plant,Boro Highways & Emergency Oper,E01AA000020501,310042930
http://statistics.data.gov.uk/id/local-authority/29UP,Tonbridge & Malling Borough Council,12/21/2022,0031019117/1,31019117, 100.00,Arnold & Court Ltd,01411300,,Premises Repairs & Maintenance,Parking Off-Street,E10HA000020601,310042926
http://statistics.data.gov.uk/id/local-authority/29UP,Tonbridge & Malling Borough Council,12/21/2022,0031019117/2,31019117, 400.00,Arnold & Court Ltd,01411300,,Premises Repairs & Maintenance,Parking Off-Street,E10HA000020601,310042926
http://statistics.data.gov.uk/id/local-authority/29UP,Tonbridge & Malling Borough Council,12/21/2022,0031019118/1,31019118, 400.00,Arnold & Court Ltd,01411300,,Contract Payments,Boro Drainage & Land Drainage,E20MA000054001,320003461
http://statistics.data.gov.uk/id/local-authority/29UP,Tonbridge & Malling Borough Council,12/21/2022,0031019119/1,31019119, 495.00,Archway Highway Services Ltd,01398000,,Purchases,Boro Highways & Emergency Oper,E01AA000040101,310042931
http://statistics.data.gov.uk/id/local-authority/29UP,Tonbridge & Malling Borough Council,12/21/2022,0031019119/2,31019119, 123.75,Archway Highway Services Ltd,01398000,,Purchases,Boro Highways & Emergency Oper,E01AA000040101,310042931
http://statistics.data.gov.uk/id/local-authority/29UP,Tonbridge & Malling Borough Council,12/21/2022,0031019119/3,31019119, 10.00,Archway Highway Services Ltd,01398000,,Purchases,Boro Highways & Emergency Oper,E01AA000040101,310042931
http://statistics.data.gov.uk/id/local-authority/29UP,Tonbridge & Malling Borough Council,12/21/2022,0031019120/1,31019120, 1660.00,Archway Highway Services Ltd,01398000,,Other Expenses,Car Park Imp Rolling Programme,P01AB000009908,310042913
http://statistics.data.gov.uk/id/local-authority/29UP,Tonbridge & Malling Borough Council,12/21/2022,0031019121/3,31019121, 856.21,CDER Group,01773300,,Adjudication & Enforcement Ser,Parking Off-Street,E10HA000044230,
http://statistics.data.gov.uk/id/local-authority/29UP,Tonbridge & Malling Borough Council,12/21/2022,0031019125/3,31019125, 54.55,Npower Ltd,01675800,,Electricity,Parking Off-Street,E10HA000021002,
http://statistics.data.gov.uk/id/local-authority/29UP,Tonbridge & Malling Borough Council,12/21/2022,0031019126/3,31019126, 101.16,Npower Ltd,01675800,,Electricity,Parking Off-Street,E10HA000021002,
http://statistics.data.gov.uk/id/local-authority/29UP,Tonbridge & Malling Borough Council,12/21/2022,0031019127/3,31019127, 245.85,Npower Ltd,01675800,,Electricity,Parking Off-Street,E10HA000021002,
http://statistics.data.gov.uk/id/local-authority/29UP,Tonbridge & Malling Borough Council,12/21/2022,0031019128/1,31019128, 66669.46,Duke Contractors Ltd,00082900,,Contract Payments,Car Park Imp Rolling Programme,P01AB000009904,310042909
http://statistics.data.gov.uk/id/local-authority/29UP,Tonbridge & Malling Borough Council,12/21/2022,0031019128/2,31019128, 10000.00,Duke Contractors Ltd,00082900,,Contract Payments,Car Park Imp Rolling Programme,P01AB000009904,310042909
http://statistics.data.gov.uk/id/local-authority/29UP,Tonbridge & Malling Borough Council,12/21/2022,0031019129/3,31019129, 83.78,Shell U.K. Oil Products Limited,01673300,,"Petrol, Diesel & Oil",Patrolling,B22LF000030106,
http://statistics.data.gov.uk/id/local-authority/29UP,Tonbridge & Malling Borough Council,12/21/2022,0031019129/4,31019129, 86.17,Shell U.K. Oil Products Limited,01673300,,"Petrol, Diesel & Oil",Parking Off-Street,E10HA000030106,
http://statistics.data.gov.uk/id/local-authority/29UP,Tonbridge & Malling Borough Council,12/21/2022,0031019129/5,31019129, 86.18,Shell U.K. Oil Products Limited,01673300,,"Petrol, Diesel & Oil",Parking On-Street,E10HD000030106,
http://statistics.data.gov.uk/id/local-authority/29UP,Tonbridge & Malling Borough Council,12/21/2022,0031019131/1,31019131, 101.22,Keyline Northfleet,01853600,,Other Expenses,Car Park Imp Rolling Programme,P01AB000009908,310042894
http://statistics.data.gov.uk/id/local-authority/29UP,Tonbridge & Malling Borough Council,12/21/2022,0031019132/1,31019132, 303.66,Keyline Northfleet,01853600,,Other Expenses,Car Park Imp Rolling Programme,P01AB000009908,310042894
http://statistics.data.gov.uk/id/local-authority/29UP,Tonbridge & Malling Borough Council,12/21/2022,0031019133/1,31019133, 4814.34,Keyline Northfleet,01853600,,Other Expenses,Car Park Imp Rolling Programme,P01AB000009908,310042891
http://statistics.data.gov.uk/id/local-authority/29UP,Tonbridge & Malling Borough Council,12/21/2022,0032009974/3,32009974, 1627.69,The Oyster Partnership,01196400,,Temporary Staff,Planning Sals&Overheads,D01AJDJ0111300,
http://statistics.data.gov.uk/id/local-authority/29UP,Tonbridge & Malling Borough Council,12/21/2022,0032009975/3,32009975, 1705.68,The Oyster Partnership,01196400,,Temporary Staff,Planning Sals&Overheads,D01AJDJ0111300,
http://statistics.data.gov.uk/id/local-authority/29UP,Tonbridge & Malling Borough Council,12/21/2022,0032009976/3,32009976, 1892.60,The Oyster Partnership,01196400,,Temporary Staff,Planning Sals&Overheads,D01AJDJ0111300,
http://statistics.data.gov.uk/id/local-authority/29UP,Tonbridge & Malling Borough Council,12/21/2022,0032009977/3,32009977, 1609.50,G2 Recruitment Solutions,01786000,,Temporary Staff,Planning Sals&Overheads,D01AJDJ0111300,
http://statistics.data.gov.uk/id/local-authority/29UP,Tonbridge & Malling Borough Council,12/21/2022,0032009978/3,32009978, 426.00,G2 Recruitment Solutions,01786000,,Temporary Staff,Planning Sals&Overheads,D01AJDJ0111300,
http://statistics.data.gov.uk/id/local-authority/29UP,Tonbridge & Malling Borough Council,12/21/2022,0032009979/3,32009979, 2590.00,G2 Recruitment Solutions,01786000,,Temporary Staff,Planning Sals&Overheads,D01AJDJ0111300,
http://statistics.data.gov.uk/id/local-authority/29UP,Tonbridge & Malling Borough Council,12/21/2022,0032009980/3,32009980, 1612.50,Carrington West Limited,01844500,,Temporary Staff,Planning Sals&Overheads,D01AJDJ0111300,
http://statistics.data.gov.uk/id/local-authority/29UP,Tonbridge & Malling Borough Council,12/21/2022,0032009981/3,32009981, 1612.50,Carrington West Limited,01844500,,Temporary Staff,Planning Sals&Overheads,D01AJDJ0111300,
http://statistics.data.gov.uk/id/local-authority/29UP,Tonbridge & Malling Borough Council,12/21/2022,0032009983/1,32009983, 160.65,KM Media Group Ltd,00053900,,Advertising General,Development Management,A01ABZ99944216,320003471
http://statistics.data.gov.uk/id/local-authority/29UP,Tonbridge & Malling Borough Council,12/21/2022,0041035010/1,41035010, 556.60,Morgan Hunt UK Ltd,01086900,,Temporary Staff,Finance Sals&Overheads,D01AFDF1111300,
http://statistics.data.gov.uk/id/local-authority/29UP,Tonbridge & Malling Borough Council,12/21/2022,0041035011/1,41035011, 556.60,Morgan Hunt UK Ltd,01086900,,Temporary Staff,Finance Sals&Overheads,D01AFDF1111300,
http://statistics.data.gov.uk/id/local-authority/29UP,Tonbridge & Malling Borough Council,12/21/2022,0041035013/1,41035013, 80.00,WorldPay Ltd,01402000,991280207,Credit Card Commission,Banking Arrangements,D43QK000044082,
http://statistics.data.gov.uk/id/local-authority/29UP,Tonbridge & Malling Borough Council,12/21/2022,0041035013/2,41035013, 70.88,WorldPay Ltd,01402000,991280207,Credit Card Commission,Banking Arrangements,D43QK000044082,
http://statistics.data.gov.uk/id/local-authority/29UP,Tonbridge & Malling Borough Council,12/21/2022,0041035013/3,41035013, 0.88,WorldPay Ltd,01402000,991280207,Credit Card Commission,Banking Arrangements,D43QK000044082,
http://statistics.data.gov.uk/id/local-authority/29UP,Tonbridge & Malling Borough Council,12/21/2022,0041035014/1,41035014, 80.00,WorldPay Ltd,01402000,991280207,Credit Card Commission,Banking Arrangements,D43QK000044082,
http://statistics.data.gov.uk/id/local-authority/29UP,Tonbridge & Malling Borough Council,12/21/2022,0041035014/2,41035014, 135.44,WorldPay Ltd,01402000,991280207,Credit Card Commission,Banking Arrangements,D43QK000044082,
http://statistics.data.gov.uk/id/local-authority/29UP,Tonbridge & Malling Borough Council,12/21/2022,0041035014/3,41035014, 1.28,WorldPay Ltd,01402000,991280207,Credit Card Commission,Banking Arrangements,D43QK000044082,
http://statistics.data.gov.uk/id/local-authority/29UP,Tonbridge & Malling Borough Council,12/21/2022,0041035015/1,41035015, 80.00,WorldPay Ltd,01402000,991280207,Credit Card Commission,Banking Arrangements,D43QK000044082,
http://statistics.data.gov.uk/id/local-authority/29UP,Tonbridge & Malling Borough Council,12/21/2022,0041035015/2,41035015, 163.12,WorldPay Ltd,01402000,991280207,Credit Card Commission,Banking Arrangements,D43QK000044082,
http://statistics.data.gov.uk/id/local-authority/29UP,Tonbridge & Malling Borough Council,12/21/2022,0041035033/3,41035033, 409.65,Maidstone Borough Council,01173700,,Bailiffs Commission,Local Revenue & NNDR Collect,D41QA000044075,
http://statistics.data.gov.uk/id/local-authority/29UP,Tonbridge & Malling Borough Council,12/21/2022,0041035034/3,41035034, 222.11,Maidstone Borough Council,01173700,,Bailiffs Commission,Local Revenue & NNDR Collect,D41QA000044075,
http://statistics.data.gov.uk/id/local-authority/29UP,Tonbridge & Malling Borough Council,12/21/2022,0041035035/3,41035035, 2607.73,Maidstone Borough Council,01173700,,Bailiffs Commission,Local Revenue & NNDR Collect,D41QA000044075,
http://statistics.data.gov.uk/id/local-authority/29UP,Tonbridge & Malling Borough Council,12/21/2022,0041035036/3,41035036, 1195.91,Rundle & Co Ltd,00087200,,Bailiffs Commission,Local Revenue & NNDR Collect,D41QA000044075,
http://statistics.data.gov.uk/id/local-authority/29UP,Tonbridge & Malling Borough Council,12/21/2022,0041035037/3,41035037, 168.63,Rundle & Co Ltd,00087200,,Bailiffs Commission,Local Revenue & NNDR Collect,D41QA000044075,
http://statistics.data.gov.uk/id/local-authority/29UP,Tonbridge & Malling Borough Council,12/21/2022,0041035038/3,41035038, 1128.85,Rundle & Co Ltd,00087200,,Bailiffs Commission,Local Revenue & NNDR Collect,D41QA000044075,
http://statistics.data.gov.uk/id/local-authority/29UP,Tonbridge & Malling Borough Council,12/21/2022,0041035039/3,41035039, 251.66,Rundle & Co Ltd,00087200,,Bailiffs Commission,Local Revenue & NNDR Collect,D41QA000044075,
http://statistics.data.gov.uk/id/local-authority/29UP,Tonbridge & Malling Borough Council,12/21/2022,0041035045/1,41035045, 15.00,WorldPay ,01568000,,Credit Card Commission,Banking Arrangements,D43QK000044082,
http://statistics.data.gov.uk/id/local-authority/29UP,Tonbridge & Malling Borough Council,12/21/2022,0041035046/1,41035046, 140.11,WorldPay ,01568000,,Credit Card Commission,Banking Arrangements,D43QK000044082,
http://statistics.data.gov.uk/id/local-authority/29UP,Tonbridge & Malling Borough Council,12/21/2022,0041035047/1,41035047, 630.21,WorldPay ,01568000,,Credit Card Commission,Banking Arrangements,D43QK000044082,
http://statistics.data.gov.uk/id/local-authority/29UP,Tonbridge & Malling Borough Council,12/21/2022,0041035048/1,41035048, 2268.48,WorldPay ,01568000,,Credit Card Commission,Banking Arrangements,D43QK000044082,
http://statistics.data.gov.uk/id/local-authority/29UP,Tonbridge & Malling Borough Council,12/21/2022,0041035048/2,41035048, 257.78,WorldPay ,01568000,,Credit Card Commission,Banking Arrangements,D43QK000044082,
http://statistics.data.gov.uk/id/local-authority/29UP,Tonbridge & Malling Borough Council,12/21/2022,0051008763/1,51008763, 695.00,HB Editorial Services Ltd,01620300,,Recruitment Advertising,Recruitment Expenses,D10DADR0013110,510010599
http://statistics.data.gov.uk/id/local-authority/29UP,Tonbridge & Malling Borough Council,12/22/2022,0041035050/1,41035050, 68.00,National Westminster Bank Plc,00069400,,Direct Debit / Bank Charges,Local Revenue & NNDR Collect,D41QA000044079,
http://statistics.data.gov.uk/id/local-authority/29UP,Tonbridge & Malling Borough Council,12/22/2022,0041035052/1,41035052, 2400.00,H.M. Revenue & Customs,00048400,,Levy Payment,Apprenticeship Scheme,D10DE000013700,
http://statistics.data.gov.uk/id/local-authority/29UP,Tonbridge & Malling Borough Council,12/22/2022,0041035052/2,41035052, 1.00,H.M. Revenue & Customs,00048400,,Levy Payment,Apprenticeship Scheme,D10DE000013700,
http://statistics.data.gov.uk/id/local-authority/29UP,Tonbridge & Malling Borough Council,12/22/2022,0041035053/1,41035053, 20.19,WorldPay Ltd,01402000,991280207,Credit Card Commission,Banking Arrangements,D43QK000044082,
